{"text_format":"1","workbook":"xlsx","n_sheets":10,"sheets":["Instructivo","Inicio","Formato_SIM","Formato_NMF","Formato_SINAD","Formato_SEVEN","Listas","Regionales","CZ","Area"],"not_rendered":{"charts":0,"images":21,"macros":1,"external_links":8,"defined_names":87,"comments":0,"pivot_tables":0},"unopened":[],"bounds":{"document_bytes":16777216,"sheet_cells":100000,"rows_first":2000,"rows_last":500,"rows_between":2000,"halvings":0,"cell_chars":16384,"cell_head_chars":4096},"cells_cut":0,"cells_raw":0,"read":"whole","date_system":"1900"}

{"sheet":"Instructivo","index":0,"n_rows":61,"n_cols":5,"rows_kept":61,"cut":false,"hidden":false,"merged":[[56,2,56,4],[63,1,63,4],[59,2,59,4],[60,2,60,4],[61,2,61,4],[57,2,57,4],[58,2,58,4],[54,2,54,4],[55,2,55,4],[1,1,3,1],[1,2,3,2],[3,3,3,4],[52,2,52,4],[53,2,53,4],[51,1,51,4],[5,1,5,4],[12,1,12,4],[17,1,17,4],[29,1,29,4],[30,1,30,4]]}
[]
[null,null,"PROCESO GESTIÓN DE LA TECNOLOGÍA E INFORMACIÓN \nFORMATO DE GESTIÓN DE USUARIOS SISTEMAS DE INFORMACION","F8.P2.GTI","2026-03-16"]
[null,null,null,"Versión 11","Página 1 de 1"]
[null,null,null,"Clasificación de la información: \nClasificada"]
[]
[null,"Señor usuario para habilitar los campos del formato debe dar clic en la opción \"Habilitar edición\""]
[]
[]
[]
[]
[]
[]
[null,"Señor usuario para habilitar los campos del formato debe dar clic en la opción \"Habilitar contenido\""]
[]
[]
[]
[]
[null,"Si al darle clic al botón \"Habilitar contenido\" el archivo no le permite trabajar por que sale un mensaje de riesgo de seguridad como se muestra en la imagen inferior. Se debe hacer los siguientes pasos:"]
[]
[]
[]
[]
[]
[]
[]
[]
[]
[]
[]
[null,"Se cierra el archivo y en el explorador de Windows se da clic derecho en el archivo y se selecciona la opción Propiedades. En la pestaña General de la parte superior izquierda se activa la opción Desbloquear de la"]
[null,"parte inferior derecha y se da clic en el botón Aceptar."]
[]
[]
[]
[]
[]
[]
[]
[]
[]
[]
[]
[]
[]
[]
[]
[]
[]
[]
[]
[]
[null,"Instructivo de utilización del Formato"]
[null,"Pasos","Definición"]
[null,"Paso Uno","Para iniciar con el diligenciamiento del formato debe ir a la Hoja llamada \"Inicio\" y dar clic en el botón Iniciar."]
[null,"Paso Dos","Aparecerá el formulario principal donde deberá marcar la Aplicación para la cual desea\nsolicitar el servicio, después de clic en el botón Ingresar."]
[null,"Paso Tres","* Cada formulario cuenta con el Campo Servicio Solicitado, el cual le permitirá\n  seleccionar el servicio solicitado para la petición.\n* También el botón Registrar el cual deberá presionar una vez están diligenciados\n   todos los campos del formulario."]
[null,"Paso Cuatro","Dependiendo de la opción seleccionada el Campo Servicio Solicitado, se activaran los campos indicando así la información a diligenciar."]
[null,"Paso Cinco","Los Formularios cuenta con validaciones de campos obligatorios, el funcionario puede o no llenar campos pero si uno de estos campos es obligatorio el sistema le avisara que debe llenarlo o no se completara el registro."]
[null,"Paso Seis","Si toda la información que registro en los campos es la correcta al dar clic en el botón Registrar. El sistema le avisara que el registro esta correcto, lo registrara en la Formato de la aplicación y limpiara los campos. Si necesita realizar otro registro simplemente llene los campos y repita el proceso."]
[]
[null,"Paso Siete","Cuando termine con el ingreso del o los para la solicitud, salga de los formularios y ubíquese en la hoja Formulario (Formato_SIM-Formato_NMF-Formato_SINAD-Formato_SEVEN). En esta hoja le aparecerá la información consignada."]

{"sheet":"Inicio","index":1,"n_rows":4,"n_cols":10,"rows_kept":4,"cut":false,"hidden":false,"merged":[[3,8,3,9],[1,2,3,7],[1,1,3,1]]}
[]
[null,null,"PROCESO GESTIÓN DE LA TECNOLOGÍA E INFORMACIÓN\nFORMATO DE GESTIÓN DE USUARIOS SISTEMAS DE INFORMACIÓN",null,null,null,null,null,"F8.P2.GTI","2026-03-16"]
[null,null,null,null,null,null,null,null,"Versión 11","Página 1 de 1"]
[null,null,null,null,null,null,null,null,"Clasificación de la información: \nClasificada"]

{"sheet":"Formato_SIM","index":2,"n_rows":9,"n_cols":21,"rows_kept":9,"cut":false,"hidden":true,"merged":[[5,1,5,4],[6,1,6,4],[3,19,3,20],[1,1,3,3],[1,4,3,18]]}
[]
[null,null,null,null,"PROCESO GESTIÓN DE LA TECNOLOGÍA E INFORMACIÓN\nFORMATO DE GESTIÓN DE USUARIOS SISTEMAS DE INFORMACION",null,null,null,null,null,null,null,null,null,null,null,null,null,null,"F8.P2.GTI","2026-03-16"]
[null,null,null,null,null,null,null,null,null,null,null,null,null,null,null,null,null,null,null,"Versión 11","Página 1 de 1"]
[null,null,null,null,null,null,null,null,null,null,null,null,null,null,null,null,null,null,null,"Clasificación de la información: \nClasificada"]
[]
[null,"SISTEMA DE INFORMACION PARA EL CUAL SE REQUIERE EL SERVICIO",null,null,null,"yuyiu",{"$f":"TRIM(F6)","v":"yuyiu"},"yiuyiuy",{"$f":"TRIM(H6)","v":"yiuyiuy"},"iuyiu",{"$f":"TRIM(J6)","v":"iuyiu"},"yiuyiuy",{"$f":"TRIM(L6)","v":"yiuyiuy"},"yuuiyiuy@gmail.com",{"$f":"ISNUMBER(MATCH(\"*@*.??*\",N6,0))","v":true}]
[null,"SIM"]
[]
[null,"Servicio Solicitado","Tipo \nDocumento","Número documento","Primer Nombre","Segundo Nombre","Primer Apellido","Segundo Apellido","Dirección","Teléfono","Correo Electrónico","Regional","Área / Centro Zonal","Género","Fecha \nde Nacimiento","Rol a Desempeñar","Profesión","Módulos","Actividades a realizar \nen el SIM","Descripción de la Solicitud","Operador \nICBF"]

{"sheet":"Formato_NMF","index":3,"n_rows":9,"n_cols":18,"rows_kept":9,"cut":false,"hidden":true,"merged":[[1,1,3,3],[3,16,3,17],[5,1,5,4],[6,1,6,4],[1,4,3,15]]}
[]
[null,null,null,null,"PROCESO GESTIÓN DE LA TECNOLOGÍA E INFORMACIÓN \nFORMATO DE GESTIÓN DE USUARIOS SISTEMAS DE INFORMACION",null,null,null,null,null,null,null,null,null,null,null,"F8.P2.GTI","2026-03-16"]
[null,null,null,null,null,null,null,null,null,null,null,null,null,null,null,null,"Versión 11","Página 1 de 1"]
[null,null,null,null,null,null,null,null,null,null,null,null,null,null,null,null,"Clasificación de la información: \nClasificada"]
[]
[null,"SISTEMA DE INFORMACION PARA EL CUAL SE REQUIERE EL SERVICIO",null,null,null,"GFDGFDGFDFGD",{"$f":"TRIM(F6)","v":"GFDGFDGFDFGD"},"GFFFDFGDFGD",{"$f":"TRIM(H6)","v":"GFFFDFGDFGD"},"FDGFDGFD",{"$f":"TRIM(J6)","v":"FDGFDGFD"},"GFDGDF",{"$f":"TRIM(L6)","v":"GFDGDF"},null,{"$f":"ISNUMBER(MATCH(\"*@*.??*\",N6,0))","v":false}]
[null,"NMF"]
[]
[null,"Servicio Solicitado","Tipo Documento","Número Documento","Primer Nombre","Segundo Nombre","Primer Apellido","Segundo Apellido","Dirección","Teléfono","Correo Electrónico","Regional","Área / Centro Zonal","Rol NMF","Cargo","Nombre de quien Autoriza","Cargo de quien Autoriza","Observaciones"]

{"sheet":"Formato_SINAD","index":4,"n_rows":9,"n_cols":19,"rows_kept":9,"cut":false,"hidden":true,"merged":[[1,1,3,3],[1,4,3,8],[3,9,3,10],[5,1,5,4],[6,1,6,4]]}
[]
[null,null,null,null,"PROCESO GESTIÓN DE LA TECNOLOGÍA E INFORMACIÓN \nFORMATO DE GESTIÓN DE USUARIOS SISTEMAS DE INFORMACION",null,null,null,null,"F8.P2.GTI","2026-03-16"]
[null,null,null,null,null,null,null,null,null,"Versión 11","Página 1 de 1"]
[null,null,null,null,null,null,null,null,null,"Clasificación de la información: \nClasificada"]
[]
[null,"SISTEMA DE INFORMACION PARA EL CUAL SE REQUIERE EL SERVICIO",null,null,null,null,{"$f":"TRIM(F6)","v":""},null,{"$f":"TRIM(H6)","v":""},null,{"$f":"TRIM(J6)","v":""},null,{"$f":"TRIM(L6)","v":""},null,{"$f":"ISNUMBER(MATCH(\"*@*.??*\",N6,0))","v":false}]
[null,"SINAD"]
[]
[null,"Servicio Solicitado","Tipo Documento","Número Documento","Primer Nombre","Segundo Nombre","Primer Apellido","Segundo Apellido","Dirección","Teléfono","Correo Electrónico","Regional","Área / Centro Zonal","Género","Fecha\nde Nacimiento","Orden","Nro. Equipo Actual","Nro. Equipo Nuevo","Observaciones"]

{"sheet":"Formato_SEVEN","index":5,"n_rows":9,"n_cols":17,"rows_kept":9,"cut":false,"hidden":true,"merged":[[1,1,3,3],[3,15,3,16],[5,1,5,4],[6,1,6,4],[1,4,3,14]]}
[]
[null,null,null,null,"PROCESO GESTIÓN DE LA TECNOLOGÍA E INFORMACIÓN \nFORMATO DE GESTIÓN DE USUARIOS SISTEMAS DE INFORMACION",null,null,null,null,null,null,null,null,null,null,"F8.P2.GTI","2026-03-16"]
[null,null,null,null,null,null,null,null,null,null,null,null,null,null,null,"Versión 11","Página 1 de 1"]
[null,null,null,null,null,null,null,null,null,null,null,null,null,null,null,"Clasificación de la información: \nClasificada"]
[]
[null,"SISTEMA DE INFORMACION PARA EL CUAL SE REQUIERE EL SERVICIO",null,null,null,null,{"$f":"TRIM(F6)","v":""},null,{"$f":"TRIM(H6)","v":""},null,{"$f":"TRIM(J6)","v":""},null,{"$f":"TRIM(L6)","v":""},null,{"$f":"ISNUMBER(MATCH(\"*@*.??*\",N6,0))","v":false}]
[null,"SEVEN ERP",null,null,null,null,null,null,{"$f":"TRIM(H7)","v":""}]
[]
[null,"Servicio Solicitado","Tipo Documento","Número Documento","Primer Nombre","Segundo Nombre","Primer Apellido","Segundo Apellido","Cargo","Dirección","Teléfono","Correo Electrónico","Regional","Área / Centro Zonal","Autorizado por","Cargo de quien Autoriza","Justificación"]

{"sheet":"Listas","index":6,"n_rows":251,"n_cols":14,"rows_kept":251,"cut":false,"hidden":true,"merged":[]}
["Servicio Solicitado SIM","Tipo Documento","Género","Rol","Profesiones","Actividad","GrupoA","Operador","Servicio Solicitado NMF","Rol NMF","Servicio Solicitado SINAD","Servicio Solicitado SEVEN",null,"Cargo de quien Autoriza"]
["Crear Usuario","C.C.","Masculino","Administrador","ABOGADO","Registrar","SI","SI","Crear Usuario","ADM_PARAMETRI","Crear Usuario","Crear Usuario","yuuiyiuy@gmail.com","Coordinador Grupo de Contabilidad"]
["Activar Usuario","C.E.","Femenino","Antropólogo","ADMINISTRADOR AERONAUTICO","Consultar","NO","NO","Activar Usuario","ADMIN ACCIONES","Modificar Usuario","Cambio de Clave",{"$f":"IFERROR(SEARCH(\"@\",M2),\"NO\")","v":9},"Coordinador Grupo de Presupuesto Direccion Financiera"]
["Desactivar Usuario","PAS",null,"Coordinador de Planeación y Sistemas en Regional","ADMINISTRADOR DE EMPRESAS",null,null,null,"Modificar Usuario","ADMIN PRESUPUESTO","Inactivar Usuario","Desbloquear Usuario",{"$f":"IFERROR(MID(M2,M3,20),\"NO\")","v":"@gmail.com"},"Coordinador Grupo de Tesorería"]
["Modificar Usuario","T.I.",null,"Coordinador GAT / Grupo protección","ADMINISTRADOR DE EMPRESAS AGROPECUARIAS",null,null,null,"Inactivar Usuario","ADMIN_BANCOS",null,"Inactivar Usuario"]
[null,null,null,"Coordinador Zonal","ADMINISTRADOR DE EMPRESAS TURISTICAS Y HOTELERAS",null,null,null,null,"ADMINISTRADOR FAQ"]
[null,null,null,"Defensor de Familia RD","ADMINISTRADOR DE INSTITUCIONES DE SERVICIO",null,null,null,null,"ADMINISTRADOR MODULO PREGUNTAS FRECUENTES"]
[null,null,null,"Defensor de Familia RPA","ADMINISTRADOR DE NEGOCIOS",null,null,null,null,"ADMINISTRADOR SEDE CAJAS MENORES CONSULTAS Y REPORTES"]
[null,null,null,"Defensor Juzgado","ADMINISTRADOR DE NEGOCIOS INTERNACIONALES",null,null,null,null,"ADMINISTRADOR_CJM"]
[null,null,null,"Director Regional","ADMINISTRADOR DE SISTEMAS INFORMATICOS",null,null,null,null,"ADMINISTRADOR_REGCJM"]
[null,null,null,"Directores Misionales","ADMINISTRADOR DEL MEDIO AMBIENTE",null,null,null,null,"ADMINISTRADORNMF"]
[null,null,null,"Ente de Control","ADMINISTRADOR DEL MEDIO AMBIENTE Y DE LOS RECURSOS NTURALES",null,null,null,null,"ADMÓN TRIBUTARIA NAL"]
[null,null,null,"Gestión Derechos de Petición","ADMINISTRADOR EN SALUD",null,null,null,null,"ADMON_USUARIOS"]
[null,null,null,"Jefe de área","ADMINISTRADOR MARITIMO",null,null,null,null,"ADMÓNCONTABLE"]
[null,null,null,"Líder SIM","ADMINISTRADOR POLICIAL",null,null,null,null,"ANALISTA PPTO REG."]
[null,null,null,"Operador - UDS","ADMINISTRADOR PUBLICA",null,null,null,null,"APERTURA VIG"]
[null,null,null,"Pasante / Judicante","ADMINISTRADOR PUBLICO",null,null,null,null,"APOYO CONTABILIDAD R"]
[null,null,null,"Profesional Comité de adopciones","ADMINISTRADOR TURISTICO Y HOTELERO",null,null,null,null,"APOYO GENERAL FINAN"]
[null,null,null,"Profesional de Soporte (DIT)","AGRONOMO(A)",null,null,null,null,"APOYO TESORERIA REGI"]
[null,null,null,"Profesional Dir. Regional / Direcciones Misionales","ANTROPOLOGO",null,null,null,null,"APROPIACION"]
[null,null,null,"Profesional EMPI","ARQUITECTO(A)",null,null,null,null,"ARC ANALIS PPTO"]
[null,null,null,"Profesional Equipo DF (Ps, Ts y Nut)","BACTERIOLOGO(A)",null,null,null,null,"ARC ANALISTA PPTO RE"]
[null,null,null,"Profesional GAT / Grupo protección","BIBLIOTECOLOGO(A)",null,null,null,null,"ARC COORD FINAN"]
[null,null,null,"Profesional Grupo Jurídico","BIOLOGO(A)",null,null,null,null,"AREA_ASP"]
[null,null,null,"Profesional Metas Sociales y Financieras","BIOLOGO(A) MARITIMA",null,null,null,null,"ASC CON Y REP"]
[null,null,null,"Profesional Servicios y Atención","CARPINTERO",null,null,null,null,"ASC COOR FINAN"]
[null,null,null,"Profesional UnidadMovil","COMUNICADOR SOCIAL",null,null,null,null,"ASC GER REC"]
[null,null,null,"Profesionales Subdirección de Programación","COMUNICADOR SOCIAL Y PERIODISMO",null,null,null,null,"ASESOR CONTABLE"]
[null,null,null,"Subdirectores Dir. Planeación","COMUNICDOR Y RELACIONES CORPORATIVAS",null,null,null,null,"ASESOR PRESUPUESTO"]
[null,null,null,"Sustanciador","CONSTRUCTOR",null,null,null,null,"ASESOR TESOR NN"]
[null,null,null,"Técnico / Asistencial","CONTADOR",null,null,null,null,"ASESOR_CONT_BANCO_NN"]
[null,null,null,"Híbrido - Debe especificar en Módulos cuales requiere","CONTADOR PUBLICO",null,null,null,null,"ASESOR_CONT_NN"]
[null,null,null,null,"DISEÑADOR GRAFICO",null,null,null,null,"ASP_REG_CONSUL"]
[null,null,null,null,"DISEÑADOR INDUSTRIAL",null,null,null,null,"ASP_UNI_CONSUL"]
[null,null,null,null,"DISEÑADOR VISUAL",null,null,null,null,"CONSULTA"]
[null,null,null,null,"ECOLOGO",null,null,null,null,"CONSULTA ASP"]
[null,null,null,null,"ECONOMISTA",null,null,null,null,"CONSULTA RESOLUCION"]
[null,null,null,null,"ECONOMISTA Y NEGOCIOS INTERNACIONALES",null,null,null,null,"CONSULTA RESOLUCIÓN"]
[null,null,null,null,"EDUCADOR ESPECIAL",null,null,null,null,"CONSULTA_BANCOS"]
[null,null,null,null,"ENFERMERA (o)",null,null,null,null,"CONSULTAS Y REPORTES"]
[null,null,null,null,"Especialista en Derecho de Familia",null,null,null,null,"CONTADOR NIVEL NACI"]
[null,null,null,null,"ESTADISTICA",null,null,null,null,"CONTADOR REGIONAL"]
[null,null,null,null,"Experto en lenguas",null,null,null,null,"CONTADOR_NACIONAL"]
[null,null,null,null,"FISIOTERAPEUTA",null,null,null,null,"CONTADOR_REGIONAL"]
[null,null,null,null,"FONOAUDIOLOGO",null,null,null,null,"COORDINACIÓN FINANCI"]
[null,null,null,null,"GEOLOGO(A)",null,null,null,null,"CREACION_USUARIOS"]
[null,null,null,null,"HISTORIADOR",null,null,null,null,"DIRECCIÓN FINANCIERA"]
[null,null,null,null,"HOGAR",null,null,null,null,"FAQ ADMINISTRADOR"]
[null,null,null,null,"INGENIERO ADMINISTRATIVO",null,null,null,null,"FAQ PREGUNTAS"]
[null,null,null,null,"INGENIERO AGRICOLA",null,null,null,null,"FAQ RESPUESTAS"]
[null,null,null,null,"INGENIERO AGROFORESTAL",null,null,null,null,"GERENTE DE RECURSO"]
[null,null,null,null,"INGENIERO AMBIENTAL",null,null,null,null,"MODIFICACIONES"]
[null,null,null,null,"INGENIERO AMBIENTAL Y SANITARIO",null,null,null,null,"PAGADOR REGIONAL"]
[null,null,null,null,"INGENIERO BIOMEDICO",null,null,null,null,"PARAM NAC"]
[null,null,null,null,"INGENIERO CATASTRAL Y GEODESIA",null,null,null,null,"PARAMETRIZACION REGI"]
[null,null,null,null,"INGENIERO CIVIL",null,null,null,null,"PERFIL PARA EL MANEJO GENERAL DEL NMF QUE SE ASIGNARA A LA DIRECCIÓN FINANCIERA DEL NIVEL NACIONAL"]
[null,null,null,null,"INGENIERO DE ALIMENTOS",null,null,null,null,"PROF AREA REG"]
[null,null,null,null,"INGENIERO DE DISEÑO DE PRODUCTOS",null,null,null,null,"PROF. PLANEACION"]
[null,null,null,null,"INGENIERO DE MATERIALES",null,null,null,null,"PROFESIONAL AREA"]
[null,null,null,null,"INGENIERO DE MINAS Y METALURGIA",null,null,null,null,"PROGRAMACION"]
[null,null,null,null,"INGENIERO DE PETROLEOS",null,null,null,null,"REGIONAL"]
[null,null,null,null,"INGENIERO DE PRDUCCION",null,null,null,null,"REPORTES_APROPIACION"]
[null,null,null,null,"INGENIERO DE PROCESOS",null,null,null,null,"ROL REGIONAL ANÁLISIS Y SEGUIMIENTO A LA EJECUCIÓN PRESUPUESTAL"]
[null,null,null,null,"INGENIERO DE SISTEMAS",null,null,null,null,"SEVEN"]
[null,null,null,null,"INGENIERO DE SISTEMAS E INFORMATICA",null,null,null,null,"SOLI CDP REGI"]
[null,null,null,null,"INGENIERO DE SISTEMAS Y COMPUTACION",null,null,null,null,"SUBDIREC. PLANEACION"]
[null,null,null,null,"INGENIERO DE SISTEMAS Y TELECOMUNICACIONES",null,null,null,null,"SUPERUSUARIO"]
[null,null,null,null,"INGENIERO DE TELECOMUNICACIONES",null,null,null,null,"TESORERO NIVEL_NAL"]
[null,null,null,null,"INGENIERO DE TRANSPORTES Y VIAS",null,null,null,null,"UNIDAD ASP"]
[null,null,null,null,"INGENIERO ELECTRICO",null,null,null,null,"UNIDADNACIONAL"]
[null,null,null,null,"INGENIERO ELECTRONICO",null,null,null,null,"URC DELEGADO"]
[null,null,null,null,"INGENIERO ELECTRONICO Y TELECOMUNICACIONES",null,null,null,null,"USU_CD_CJM"]
[null,null,null,null,"INGENIERO FISICO",null,null,null,null,"USUARIO_REG_CJM"]
[null,null,null,null,"INGENIERO FORESTAL"]
[null,null,null,null,"INGENIERO GEOLOGO"]
[null,null,null,null,"INGENIERO INDUSTRIAL"]
[null,null,null,null,"INGENIERO INDUSTRIAL"]
[null,null,null,null,"INGENIERO INFORMATICO"]
[null,null,null,null,"INGENIERO MECANICO"]
[null,null,null,null,"INGENIERO MECATRONICO"]
[null,null,null,null,"INGENIERO METALURGICO"]
[null,null,null,null,"INGENIERO NAVAL"]
[null,null,null,null,"INGENIERO QUIMICO"]
[null,null,null,null,"INGENIERO SANITARIO"]
[null,null,null,null,"INGENIERO TELEMATICO"]
[null,null,null,null,"INGENIERO TOPOGRAFICO"]
[null,null,null,null,"JORNALERO"]
[null,null,null,null,"LATONERO"]
[null,null,null,null,"LICENCIADO EN BIOLOGIA"]
[null,null,null,null,"LICENCIADO EN CIENCIAS SOCIALES"]
[null,null,null,null,"LICENCIADO EN EDUCACION"]
[null,null,null,null,"LICENCIADO EN EDUCACIÓN BÁSICA CON ÉNFASIS EN CIENCIAS NATURALES Y EDUCACIÓN AMBIENTAL"]
[null,null,null,null,"LICENCIADO EN EDUCACION BASICA CON ENFASIS EN CIENCIAS SOCIALES"]
[null,null,null,null,"LICENCIADO EN EDUCACION BASICA CON ENFASIS EN EDUCACION ARTISTICA"]
[null,null,null,null,"LICENCIADO EN EDUCACION BASICA CON ENFASIS EN EDUCACION FISICA RECREACION Y DEPORTE"]
[null,null,null,null,"LICENCIADO EN EDUCACION BASICA CON ENFASIS EN HUMANIDADES ESPAÑOL E INGLES"]
[null,null,null,null,"LICENCIADO EN EDUCACION BASICA CON ENFASIS EN HUMANIDADES Y LENGUA CASTELLANA"]
[null,null,null,null,"LICENCIADO EN EDUCACION BASICA CON ENFASIS EN HUMANIDADES, ESPAÑOL Y LENGUAS EXTRANJERAS"]
[null,null,null,null,"LICENCIADO EN EDUCACION BASICA CON ENFASIS EN MATEMATICAS"]
[null,null,null,null,"LICENCIADO EN EDUCACIÓN BÁSICA ÉNFASIS CIENCIAS NATURALES Y EDUCACIÓN AMBIENTAL"]
[null,null,null,null,"LICENCIADO EN EDUCACION ESPECIAL"]
[null,null,null,null,"LICENCIADO EN EDUCACION FISICA"]
[null,null,null,null,"LICENCIADO EN EDUCACION FISICA, RECREACION Y DEPORTE"]
[null,null,null,null,"LICENCIADO EN EDUCACION INFANTIL"]
[null,null,null,null,"LICENCIADO EN EDUCACION PREESCOLAR"]
[null,null,null,null,"LICENCIADO EN EDUCACIÓN PREESCOLAR"]
[null,null,null,null,"LICENCIADO EN FILOSOFIA"]
[null,null,null,null,"LICENCIADO EN FISICA"]
[null,null,null,null,"LICENCIADO EN HISTORIA"]
[null,null,null,null,"LICENCIADO EN INFORMATICA EDUCATIVA"]
[null,null,null,null,"LICENCIADO EN INFORMATICA Y MEDIOS AUDIOVISUALES"]
[null,null,null,null,"LICENCIADO EN LENGUA CASTELLANA Y LITERATURA"]
[null,null,null,null,"LICENCIADO EN LENGUAS EXTRANJERAS"]
[null,null,null,null,"LICENCIADO EN LENGUAS MODERNAS"]
[null,null,null,null,"LICENCIADO EN LITERATURA"]
[null,null,null,null,"LICENCIADO EN MATEMATICAS"]
[null,null,null,null,"LICENCIADO EN MATEMATICAS Y FISICA"]
[null,null,null,null,"LICENCIADO EN MUSICA"]
[null,null,null,null,"LICENCIADO EN PEDAGOGIA INFANTIL"]
[null,null,null,null,"LICENCIADO EN PSICOPEDAGOGIA CON ENFASIS EN ASESORIA EDUCATIVA"]
[null,null,null,null,"LICENCIADO EN QUIMICA"]
[null,null,null,null,"MAESTRA JARDINERA/O"]
[null,null,null,null,"MECANICO"]
[null,null,null,null,"MEDICO"]
[null,null,null,null,"MEDICO VETERINARIO"]
[null,null,null,null,"MEDICO VETERINARIO Y ZOOTECNISTA"]
[null,null,null,null,"MICROBIOLOGA"]
[null,null,null,null,"MUSICO"]
[null,null,null,null,"MUSICO INSTRUMENTAL"]
[null,null,null,null,"NULO"]
[null,null,null,null,"NUTRICIONISTA"]
[null,null,null,null,"OCEANOGRAFO FISICO"]
[null,null,null,null,"ODONTOLOGO"]
[null,null,null,null,"OPTOMETRA"]
[null,null,null,null,"PEDAGOGO"]
[null,null,null,null,"PROFESIONAL EN ARTES PLASTICAS"]
[null,null,null,null,"PROFESIONAL EN ARTES REPRESENTATIVAS"]
[null,null,null,null,"PROFESIONAL EN ARTES VISUALES"]
[null,null,null,null,"PROFESIONAL EN CIENCIA Y TECNOLOGÍA DE ALIMENTOS"]
[null,null,null,null,"PROFESIONAL EN CIENCIAS DEL DEPORTE"]
[null,null,null,null,"PROFESIONAL EN CIENCIAS DEL DEPORTE Y LA RECREACION"]
[null,null,null,null,"PROFESIONAL EN CIENCIAS POLÍTICA Y GOBIERNO"]
[null,null,null,null,"PROFESIONAL EN CIENCIAS POLITICAS"]
[null,null,null,null,"PROFESIONAL EN CINE Y TELEVISION"]
[null,null,null,null,"PROFESIONAL EN COMERCIO EXTERIOR"]
[null,null,null,null,"PROFESIONAL EN COMERCIO INTERNACIONAL"]
[null,null,null,null,"PROFESIONAL EN CRIMINALISTICA"]
[null,null,null,null,"PROFESIONAL EN CULTURA FISICA, DEPORTE Y RECREACION"]
[null,null,null,null,"PROFESIONAL EN DESARROLLO FAMILIAR"]
[null,null,null,null,"PROFESIONAL EN ESPAÑOL Y FILOLOGIA CLASICA"]
[null,null,null,null,"PROFESIONAL EN ESTUDIOS LITERARIOS"]
[null,null,null,null,"PROFESIONAL EN ESTUDIOS MUSICALES"]
[null,null,null,null,"PROFESIONAL EN FARMACIA"]
[null,null,null,null,"PROFESIONAL EN FILOLOGIA E IDIOMAS"]
[null,null,null,null,"PROFESIONAL EN FILOSOFIA"]
[null,null,null,null,"PROFESIONAL EN FILOSOFIA Y HUMANIDADES"]
[null,null,null,null,"PROFESIONAL EN FILOSOFIA Y LETRAS"]
[null,null,null,null,"PROFESIONAL EN FINANZAS Y COMERCIO EXTERIOR"]
[null,null,null,null,"PROFESIONAL EN FINANZAS Y RELACIONES INTERNACIONALES"]
[null,null,null,null,"PROFESIONAL EN FISICA"]
[null,null,null,null,"PROFESIONAL EN GEOGRAFIA"]
[null,null,null,null,"PROFESIONAL EN GERENCIA DE LA SEGURIDAD Y ANALISIS SOCIOPOLITICO"]
[null,null,null,null,"PROFESIONAL EN GOBIERNO Y RELACIONES INTERNACIONALES"]
[null,null,null,null,"PROFESIONAL EN LENGUAJES Y ESTUDIOS SOCIOCULTURALES"]
[null,null,null,null,"PROFESIONAL EN LINGÜÍSTICA"]
[null,null,null,null,"PROFESIONAL EN LITERATURA"]
[null,null,null,null,"PROFESIONAL EN MATEMATICAS"]
[null,null,null,null,"PROFESIONAL EN MERCADEO NACIONAL E INTERNACIONAL"]
[null,null,null,null,"PROFESIONAL EN MERCADEO Y PUBLICIDAD"]
[null,null,null,null,"PROFESIONAL EN NEGOCIOS INTERNACIONALES"]
[null,null,null,null,"PROFESIONAL EN RELACIONES INTERNACIONALES"]
[null,null,null,null,"PROFESIONAL EN SISTEMAS DE INFORMACION Y DOCUMENTACION"]
[null,null,null,null,"PROMOTORA SOCIAL"]
[null,null,null,null,"PSICOLOGO"]
[null,null,null,null,"PSICOPEDAGOGO"]
[null,null,null,null,"PUBLICISTA"]
[null,null,null,null,"QUIMICO"]
[null,null,null,null,"QUIMICO FARMACEUTICO"]
[null,null,null,null,"RECREADOR"]
[null,null,null,null,"RELACIONES INTERNACIONALES"]
[null,null,null,null,"SECRETARIO(A) Y/O AUXILIAR ADMINISTRATIVO(A)"]
[null,null,null,null,"SIN INFORMACION"]
[null,null,null,null,"SOCIOLOGO"]
[null,null,null,null,"TÉCNICA PROFESIONAL EN TECNICOS FORESTALES"]
[null,null,null,null,"TECNICO EN ADMINISTRACION Y MERCADOTECNIA"]
[null,null,null,null,"TECNICO PROFESIONAL EN COMERCIO EXTERIOR Y NEGOCIOS INTERNACIONALES"]
[null,null,null,null,"TECNICO PROFESIONAL EN COMPUTACION"]
[null,null,null,null,"TECNICO PROFESIONAL EN DISEÑO GRAFICO"]
[null,null,null,null,"TECNICO PROFESIONAL EN ELECTROMEDICINA"]
[null,null,null,null,"TECNICO PROFESIONAL EN ELECTRONICA INDUSTRIAL"]
[null,null,null,null,"TECNICO PROFESIONAL EN ENFERMERIA"]
[null,null,null,null,"TECNICO PROFESIONAL EN PERIODISMO"]
[null,null,null,null,"TECNICO PROFESIONAL EN SEGURIDAD E HIGIENE INDUSTRIAL"]
[null,null,null,null,"TECNICO PROFESIONAL EN TECNOLOGIA DE PLASTICOS"]
[null,null,null,null,"TECNICO PROFESIONAL EN TELECOMUNICACIONES"]
[null,null,null,null,"TECNOLOGÍA NAVIERA"]
[null,null,null,null,"TECNOLOGO AGROPECUARIA"]
[null,null,null,null,"TECNOLOGO DE ENTRENAMIENTO Y GESTION MILITAR"]
[null,null,null,null,"TECNOLOGO ELECTRONICA"]
[null,null,null,null,"TECNOLOGO EN ABASTECIMIENTOS AERONAUTICOS"]
[null,null,null,null,"TECNOLOGO EN ADMINISTRACIÓN PUBLICA"]
[null,null,null,null,"TECNOLOGO EN ADMINISTRACION Y ANALISIS DE LA SEGURIDAD"]
[null,null,null,null,"TECNOLOGO EN ADMINISTRACION Y FINANZAS"]
[null,null,null,null,"TECNOLOGO EN ANALISIS DE COSTOS Y PRESUPUESTOS"]
[null,null,null,null,"TECNOLOGO EN CALIDAD"]
[null,null,null,null,"TECNOLOGO EN COMUNICACIONES AERONAUTICAS"]
[null,null,null,null,"TECNOLOGO EN CONSTRUCCION DE ACABADOS ARQUITECTONICOS"]
[null,null,null,null,"TECNOLOGO EN DISEÑO GRAFICO"]
[null,null,null,null,"TECNOLOGO EN ELECTRICIDAD"]
[null,null,null,null,"TECNOLOGO EN ELECTROMECANICA"]
[null,null,null,null,"TECNOLOGO EN ELECTRONICA"]
[null,null,null,null,"TECNOLOGO EN ELECTRONICA AERONAUTICA"]
[null,null,null,null,"TECNOLOGO EN ELECTRONICA Y COMUNICACIONES"]
[null,null,null,null,"TECNOLOGO EN ENTRENAMIENTO Y GESTION MILITAR"]
[null,null,null,null,"TECNOLOGO EN FINANCIERA Y CONTABLE"]
[null,null,null,null,"TECNOLOGO EN GESTION ADMINISTRATIVA"]
[null,null,null,null,"TECNOLOGO EN GESTION NAVIERA Y PORTUARIA"]
[null,null,null,null,"TECNOLOGO EN INFORMATICA"]
[null,null,null,null,"TECNOLOGO EN MANTENIMIENTO AERONAUTICO"]
[null,null,null,null,"TECNOLOGO EN MANTENIMIENTO DE EQUIPO BIOMEDICO"]
[null,null,null,null,"TECNOLOGO EN MERCADEO"]
[null,null,null,null,"TECNOLOGO EN PRODUCCION"]
[null,null,null,null,"TECNOLOGO EN RADIOLOGIA E IMAGENES DIAGNOSTICAS"]
[null,null,null,null,"TECNOLOGO EN REGENCIA DE FARMACIA"]
[null,null,null,null,"TECNOLOGO EN SANEAMIENTO AMBIENTAL"]
[null,null,null,null,"TECNOLOGO EN SANIDAD NAVAL"]
[null,null,null,null,"TECNOLOGO EN SEGURIDAD AEROPORTUARIA"]
[null,null,null,null,"TECNOLOGO EN SEGURIDAD E HIGIENE OCUPACIONAL"]
[null,null,null,null,"TECNOLOGO EN SISTEMAS"]
[null,null,null,null,"TECNOLOGO EN SISTEMAS DE INFORMACION"]
[null,null,null,null,"TECNOLOGO EN TELECOMUNICACIONES"]
[null,null,null,null,"TECNOLOGO EN TOPOGRAFIA"]
[null,null,null,null,"TECNOLOGO INDUSTRIAL"]
[null,null,null,null,"TECNOLOGO MECANICA"]
[null,null,null,null,"TECNOLOGO NAVAL EN ADMINISTRACION MARITIMA"]
[null,null,null,null,"TECNOLOGO NAVAL EN ELECTROMECANICA"]
[null,null,null,null,"TECNOLOGO NAVAL EN ELECTRONICA"]
[null,null,null,null,"TECNOLOGO NAVAL EN HIDROGRAFIA"]
[null,null,null,null,"TECNOLOGO NAVAL EN OCEANOGRAFIA FISICA"]
[null,null,null,null,"TECNOLOGO PROMOCION SOCIAL"]
[null,null,null,null,"TECNOLOGO QUIMICA"]
[null,null,null,null,"TEOLOGO"]
[null,null,null,null,"TERAPISTA DE LENGUAJE"]
[null,null,null,null,"TERAPISTA OCUPACIONAL"]
[null,null,null,null,"TRABAJADOR SOCIAL"]
[null,null,null,null,"TRABAJO SOCIAL"]
[null,null,null,null,"Traductor"]
[null,null,null,null,"VAQUERO"]
[null,null,null,null,"ZOOTECNISTA"]
[null,null,null,null,"INSTRUMENTADOR QUIRURGICO"]
[null,null,null,null,"USUARIO ADO REGIONAL"]

{"sheet":"Regionales","index":7,"n_rows":35,"n_cols":2,"rows_kept":35,"cut":false,"hidden":true,"merged":[]}
["Codigo1","Sedes"]
[1,"Sede de la Dirección General"]
[2,"Regional Amazonas"]
[3,"Regional Antioquia"]
[4,"Regional Arauca"]
[5,"Regional Atlantico"]
[6,"Regional Bogotá"]
[7,"Regional Bolivar"]
[8,"Regional Boyaca"]
[9,"Regional Caldas"]
[10,"Regional Caqueta"]
[11,"Regional Casanare"]
[12,"Regional Cauca"]
[13,"Regional Cesar"]
[14,"Regional Choco"]
[15,"Regional Cordoba"]
[16,"Regional Cundinamarca"]
[17,"Regional Guainía"]
[18,"Regional La Guajira"]
[19,"Regional Guaviare"]
[20,"Regional Huila"]
[21,"Regional Magdalena"]
[22,"Regional Meta"]
[23,"Regional Nariño"]
[24,"Regional Norte de Santander"]
[25,"Regional Putumayo"]
[26,"Regional Quindio"]
[27,"Regional Risaralda"]
[28,"Regional San Andres"]
[29,"Regional Santander"]
[30,"Regional Sucre"]
[31,"Regional Tolima"]
[32,"Regional Valle del Cauca"]
[33,"Regional Vaupes"]
[34,"Regional Vichada"]

{"sheet":"CZ","index":8,"n_rows":831,"n_cols":3,"rows_kept":831,"cut":false,"hidden":true,"merged":[]}
["Codigo1","Codigo2","Área / Centro Zonal"]
[1,44,"Comisión de Personal"]
[1,45,"Comité de Coordinación del Sistema de Control Interno"]
[1,46,"Comité de Defensa Judicial y Conciliación"]
[1,47,"Comité de Gestión Integral"]
[1,1,"Consejo Directivo"]
[1,11,"Dirección Administrativa"]
[1,15,"Dirección de Abastecimiento"]
[1,31,"Dirección de Adolescencia y Juventud"]
[1,13,"Dirección de Contratación"]
[1,34,"Dirección de Familias, Comunidades y Pueblos"]
[1,53,"Dirección de Infancias y Adolescencias"]
[1,37,"Dirección de Nutrición"]
[1,17,"Dirección de Planeación y Control de Gestión"]
[1,27,"Dirección de Primera Infancia"]
[1,38,"Dirección de Protección Especial"]
[1,61,"Dirección de Relación con la Ciudadanía"]
[1,14,"Dirección de Servicios y Atención"]
[1,60,"Dirección de Talento Humano"]
[1,21,"Dirección de Tecnologías de la Información"]
[1,12,"Dirección Financiera"]
[1,2,"Dirección General"]
[1,24,"Dirección Sistema Nacional de Bienestar Familiar"]
[1,42,"Direcciones Regionales"]
[1,7,"Oficina Asesora de Comunicaciones"]
[1,5,"Oficina de Aseguramiento a la Calidad"]
[1,16,"Oficina de Control Disciplinario Interno"]
[1,3,"Oficina de Control Interno"]
[1,4,"Oficina de Cooperación"]
[1,8,"Oficina de Gestión Regional"]
[1,48,"Oficina de Inspección, Vigilancia y Control, y Calidad de Servicios"]
[1,6,"Oficina Jurídica"]
[1,43,"Órganos Internos de Asesoría y Coordinación"]
[1,10,"Secretaría General"]
[1,41,"Subdirección de Adopciones"]
[1,25,"Subdirección de Articulación Nacional del SNBF"]
[1,26,"Subdirección de Articulación Territorial del SNBF"]
[1,59,"Subdirección de Atención en Alimentación y Nutrición"]
[1,54,"Subdirección de Atención Integral a Niños, Niñas y Adolescentes"]
[1,51,"Subdirección de Atención Integral Familiar Comunitaria"]
[1,50,"Subdirección de Atención Integral lnterinstitucional"]
[1,52,"Subdirección de Atención Integral Propia e Intercultural"]
[1,49,"Subdirección de Autoridades Administrativas"]
[1,56,"Subdirección de Familias y Comunidades"]
[1,58,"Subdirección de Gestión Estratégica para el Derecho Humano a la Alimentación"]
[1,32,"Subdirección de Gestión Técnica para la Adolescencia y la Juventud"]
[1,35,"Subdirección de Gestión Técnica para la Atención a la Familia y Comunidades"]
[1,28,"Subdirección de Gestión Técnica para la Atención a la Primera Infancia"]
[1,19,"Subdirección de Mejoramiento Organizacional"]
[1,20,"Subdirección de Monitoreo y Evaluación"]
[1,36,"Subdirección de Operación de la Atención a la Familia y Comunidades"]
[1,29,"Subdirección de Operación de la Atención a la Primera Infancia"]
[1,33,"Subdirección de Operación de Programas para la Adolescencia y Juventud"]
[1,55,"Subdirección de Prevención de Vulneraciones a Niños, Niñas y Adolescentes"]
[1,18,"Subdirección de Programación"]
[1,30,"Subdirección de Promoción y Fortalecimiento a la Infancia"]
[1,57,"Subdirección de Pueblos Étnicos y Campesinos"]
[1,23,"Subdirección de Recursos Tecnológicos"]
[1,40,"Subdirección de Responsabilidad Penal"]
[1,39,"Subdirección de Restablecimiento de Derechos"]
[1,22,"Subdirección de Sistemas Integrados de Información"]
[1,9,"Subdirección General"]
[2,4,"CZ Leticia"]
[2,11,"Dirección de Familias, Comunidades y Pueblos"]
[2,13,"Dirección de Infancias y Adolescencias"]
[2,12,"Dirección de Protección Especial"]
[2,15,"Dirección de Relación con la Ciudadanía"]
[2,14,"Dirección de Talento Humano"]
[2,10,"Dirección de Tecnologías de la Información"]
[2,1,"Dirección Regional"]
[2,2,"Grupo de Asistencia Técnica"]
[2,3,"Grupo de Gestión de Soporte"]
[2,6,"Oficina Asesora de Comunicaciones"]
[2,8,"Oficina de Aseguramiento a la Calidad"]
[2,5,"Oficina de Cooperación"]
[2,9,"Oficina de Gestión Regional"]
[2,7,"Oficina Jurídica"]
[3,13,"CZ Aburra Norte"]
[3,14,"CZ Aburra Sur"]
[3,15,"CZ Bajo Cauca"]
[3,11,"CZ Integral Noroccidental"]
[3,10,"CZ Integral Nororiental"]
[3,16,"CZ La Floresta"]
[3,17,"CZ La Meseta"]
[3,18,"CZ Magdalena Medio"]
[3,19,"CZ Occidente"]
[3,20,"CZ Occidente Medio"]
[3,21,"CZ Oriente"]
[3,28,"CZ Oriente Medio"]
[3,25,"CZ Penderisco"]
[3,22,"CZ Porce Nus"]
[3,27,"CZ Rosales"]
[3,12,"CZ Sur Oriente"]
[3,24,"CZ Suroeste"]
[3,26,"CZ Uraba"]
[3,32,"Dirección de Familias, Comunidades y Pueblos"]
[3,34,"Dirección de Infancias y Adolescencias"]
[3,33,"Dirección de Protección Especial"]
[3,36,"Dirección de Relación con la Ciudadanía"]
[3,35,"Dirección de Talento Humano"]
[3,23,"Dirección de Tecnologías de la Información"]
[3,1,"Dirección Regional"]
[3,2,"Grupo Administrativo"]
[3,3,"Grupo de Atencion en Ciclos de Vida y Nutrición"]
[3,4,"Grupo de Planeación y Sistemas"]
[3,6,"Grupo de Proteccion"]
[3,7,"Grupo Financiero"]
[3,8,"Grupo Jurídico"]
[3,9,"Oficina Asesora de Comunicaciones"]
[3,30,"Oficina de Aseguramiento a la Calidad"]
[3,5,"Oficina de Cooperación"]
[3,31,"Oficina de Gestión Regional"]
[3,29,"Oficina Jurídica"]
[4,8,"CZ Arauca"]
[4,10,"CZ Saravena"]
[4,11,"CZ Tame"]
[4,16,"Dirección de Familias, Comunidades y Pueblos"]
[4,18,"Dirección de Infancias y Adolescencias"]
[4,17,"Dirección de Protección Especial"]
[4,20,"Dirección de Relación con la Ciudadanía"]
[4,19,"Dirección de Talento Humano"]
[4,15,"Dirección de Tecnologías de la Información"]
[4,1,"Dirección Regional"]
[4,6,"Grupo Administrativo"]
[4,4,"Grupo de Asistencia Técnica"]
[4,2,"Grupo de Planeación y Sistemas"]
[4,7,"Grupo Financiero"]
[4,3,"Grupo Jurídico"]
[4,9,"Oficina Asesora de Comunicaciones"]
[4,13,"Oficina de Aseguramiento a la Calidad"]
[4,5,"Oficina de Cooperación"]
[4,14,"Oficina de Gestión Regional"]
[4,12,"Oficina Jurídica"]
[5,11,"CZ Baranoa"]
[5,14,"CZ Hipódromo"]
[5,8,"CZ Norte Centro Histórico"]
[5,13,"CZ Sabanagrande"]
[5,12,"CZ Sabanalarga"]
[5,10,"CZ Suroccidente"]
[5,15,"CZ Suroriente"]
[5,20,"Dirección de Familias, Comunidades y Pueblos"]
[5,22,"Dirección de Infancias y Adolescencias"]
[5,21,"Dirección de Protección Especial"]
[5,24,"Dirección de Relación con la Ciudadanía"]
[5,23,"Dirección de Talento Humano"]
[5,19,"Dirección de Tecnologías de la Información"]
[5,1,"Dirección Regional"]
[5,2,"Grupo Administrativo"]
[5,3,"Grupo de Asistencia Técnica"]
[5,4,"Grupo de Planeación y Sistemas"]
[5,6,"Grupo Financiero"]
[5,7,"Grupo Jurídico"]
[5,9,"Oficina Asesora de Comunicaciones"]
[5,17,"Oficina de Aseguramiento a la Calidad"]
[5,5,"Oficina de Cooperación"]
[5,18,"Oficina de Gestión Regional"]
[5,16,"Oficina Jurídica"]
[6,25,"CZ Barrios Unidos"]
[6,20,"CZ Bosa"]
[6,12,"CZ Ciudad Bolivar"]
[6,30,"CZ Creer"]
[6,26,"CZ Engativá"]
[6,23,"CZ Fontibón"]
[6,16,"CZ Kennedy"]
[6,17,"CZ Kennedy Central"]
[6,29,"CZ Mártires"]
[6,19,"CZ Puente Aranda"]
[6,21,"CZ Rafael Uribe"]
[6,18,"CZ Revivir"]
[6,15,"CZ San Cristobal Sur"]
[6,22,"CZ Santa Fe"]
[6,27,"CZ Suba"]
[6,13,"CZ Tunjuelito"]
[6,28,"CZ Usaquén"]
[6,14,"CZ Usme"]
[6,31,"Dirección de Familias, Comunidades y Pueblos"]
[6,33,"Dirección de Infancias y Adolescencias"]
[6,32,"Dirección de Protección Especial"]
[6,37,"Dirección de Relación con la Ciudadanía"]
[6,36,"Dirección de Talento Humano"]
[6,24,"Dirección de Tecnologías de la Información"]
[6,1,"Dirección Regional"]
[6,2,"Grupo Administrativo"]
[6,3,"Grupo de Atencion en Ciclos de Vida y Nutrición"]
[6,4,"Grupo de Gestión Humana"]
[6,6,"Grupo de Planeación y Sistemas"]
[6,7,"Grupo de Proteccion"]
[6,8,"Grupo de Recaudo"]
[6,10,"Grupo Financiero"]
[6,11,"Grupo Jurídico"]
[6,9,"Oficina Asesora de Comunicaciones"]
[6,35,"Oficina de Aseguramiento a la Calidad"]
[6,5,"Oficina de Cooperación"]
[6,38,"Oficina de Gestión Regional"]
[6,34,"Oficina Jurídica"]
[7,10,"CZ de la Virgen y Turístico"]
[7,13,"CZ El Carmen de Bolivar"]
[7,8,"CZ Histórico y del Caribe Norte"]
[7,11,"CZ Industrial de La Bahía"]
[7,14,"CZ Magangué"]
[7,15,"CZ Mompox"]
[7,16,"CZ Simiti"]
[7,12,"CZ Turbaco"]
[7,21,"Dirección de Familias, Comunidades y Pueblos"]
[7,23,"Dirección de Infancias y Adolescencias"]
[7,22,"Dirección de Protección Especial"]
[7,25,"Dirección de Relación con la Ciudadanía"]
[7,24,"Dirección de Talento Humano"]
[7,20,"Dirección de Tecnologías de la Información"]
[7,1,"Dirección Regional"]
[7,6,"Grupo Administrativo"]
[7,4,"Grupo de Asistencia Técnica"]
[7,2,"Grupo de Planeación y Sistemas"]
[7,7,"Grupo Financiero"]
[7,3,"Grupo Jurídico"]
[7,9,"Oficina Asesora de Comunicaciones"]
[7,18,"Oficina de Aseguramiento a la Calidad"]
[7,5,"Oficina de Cooperación"]
[7,19,"Oficina de Gestión Regional"]
[7,17,"Oficina Jurídica"]
[8,13,"CZ Chiquinquirá"]
[8,12,"CZ Duitama"]
[8,17,"CZ El Cocuy"]
[8,14,"CZ Garagoa"]
[8,18,"CZ Miraflores"]
[8,19,"CZ Moniquirá"]
[8,20,"CZ Otanche"]
[8,15,"CZ Puerto Boyaca"]
[8,16,"CZ Soata"]
[8,11,"CZ Sogamoso"]
[8,8,"CZ Tunja 1"]
[8,10,"CZ Tunja 2"]
[8,25,"Dirección de Familias, Comunidades y Pueblos"]
[8,27,"Dirección de Infancias y Adolescencias"]
[8,26,"Dirección de Protección Especial"]
[8,29,"Dirección de Relación con la Ciudadanía"]
[8,28,"Dirección de Talento Humano"]
[8,22,"Dirección de Tecnologías de la Información"]
[8,1,"Dirección Regional"]
[8,6,"Grupo Administrativo"]
[8,4,"Grupo de Asistencia Técnica"]
[8,2,"Grupo de Planeación y Sistemas"]
[8,7,"Grupo Financiero"]
[8,3,"Grupo Jurídico"]
[8,9,"Oficina Asesora de Comunicaciones"]
[8,23,"Oficina de Aseguramiento a la Calidad"]
[8,5,"Oficina de Cooperación"]
[8,24,"Oficina de Gestión Regional"]
[8,21,"Oficina Jurídica"]
[9,15,"CZ del Café"]
[9,8,"CZ Manizales 1"]
[9,10,"CZ Manizales 2"]
[9,13,"CZ Norte"]
[9,11,"CZ Occidente"]
[9,12,"CZ Oriente"]
[9,14,"CZ Sur Oriente"]
[9,20,"Dirección de Familias, Comunidades y Pueblos"]
[9,22,"Dirección de Infancias y Adolescencias"]
[9,21,"Dirección de Protección Especial"]
[9,24,"Dirección de Relación con la Ciudadanía"]
[9,23,"Dirección de Talento Humano"]
[9,19,"Dirección de Tecnologías de la Información"]
[9,1,"Dirección Regional"]
[9,2,"Grupo Administrativo"]
[9,3,"Grupo de Asistencia Técnica"]
[9,4,"Grupo de Planeación y Sistemas"]
[9,6,"Grupo Financiero"]
[9,7,"Grupo Jurídico"]
[9,9,"Oficina Asesora de Comunicaciones"]
[9,17,"Oficina de Aseguramiento a la Calidad"]
[9,5,"Oficina de Cooperación"]
[9,18,"Oficina de Gestión Regional"]
[9,16,"Oficina Jurídica"]
[10,12,"CZ Belen de Los Andaquies"]
[10,8,"CZ Florencia 1"]
[10,10,"CZ Florencia 2"]
[10,11,"CZ Puerto Rico"]
[10,17,"Dirección de Familias, Comunidades y Pueblos"]
[10,19,"Dirección de Infancias y Adolescencias"]
[10,18,"Dirección de Protección Especial"]
[10,21,"Dirección de Relación con la Ciudadanía"]
[10,20,"Dirección de Talento Humano"]
[10,16,"Dirección de Tecnologías de la Información"]
[10,1,"Dirección Regional"]
[10,2,"Grupo Administrativo"]
[10,3,"Grupo de Asistencia Técnica"]
[10,4,"Grupo de Planeación y Sistemas"]
[10,6,"Grupo Financiero"]
[10,7,"Grupo Jurídico"]
[10,9,"Oficina Asesora de Comunicaciones"]
[10,14,"Oficina de Aseguramiento a la Calidad"]
[10,5,"Oficina de Cooperación"]
[10,15,"Oficina de Gestión Regional"]
[10,13,"Oficina Jurídica"]
[11,10,"CZ Paz de Ariporo"]
[11,11,"CZ Villanueva"]
[11,8,"CZ Yopal"]
[11,16,"Dirección de Familias, Comunidades y Pueblos"]
[11,18,"Dirección de Infancias y Adolescencias"]
[11,17,"Dirección de Protección Especial"]
[11,20,"Dirección de Relación con la Ciudadanía"]
[11,19,"Dirección de Talento Humano"]
[11,15,"Dirección de Tecnologías de la Información"]
[11,1,"Dirección Regional"]
[11,6,"Grupo Administrativo"]
[11,4,"Grupo de Asistencia Técnica"]
[11,2,"Grupo de Planeación y Sistemas"]
[11,7,"Grupo Financiero"]
[11,3,"Grupo Jurídico"]
[11,9,"Oficina Asesora de Comunicaciones"]
[11,13,"Oficina de Aseguramiento a la Calidad"]
[11,5,"Oficina de Cooperación"]
[11,14,"Oficina de Gestión Regional"]
[11,12,"Oficina Jurídica"]
[12,10,"CZ Centro"]
[12,15,"CZ Costa Pacífica"]
[12,11,"CZ Indígena"]
[12,14,"CZ Macizo Colombiano"]
[12,13,"CZ Norte"]
[12,8,"CZ Popayán"]
[12,12,"CZ Sur"]
[12,20,"Dirección de Familias, Comunidades y Pueblos"]
[12,22,"Dirección de Infancias y Adolescencias"]
[12,21,"Dirección de Protección Especial"]
[12,24,"Dirección de Relación con la Ciudadanía"]
[12,23,"Dirección de Talento Humano"]
[12,19,"Dirección de Tecnologías de la Información"]
[12,1,"Dirección Regional"]
[12,6,"Grupo Administrativo"]
[12,4,"Grupo de Asistencia Técnica"]
[12,2,"Grupo de Planeación y Sistemas"]
[12,7,"Grupo Financiero"]
[12,3,"Grupo Jurídico"]
[12,9,"Oficina Asesora de Comunicaciones"]
[12,17,"Oficina de Aseguramiento a la Calidad"]
[12,5,"Oficina de Cooperación"]
[12,18,"Oficina de Gestión Regional"]
[12,16,"Oficina Jurídica"]
[13,12,"CZ Aguachica"]
[13,13,"CZ Agustin Codazzi"]
[13,11,"CZ Chiriguana"]
[13,8,"CZ Valledupar 1"]
[13,10,"CZ Valledupar 2"]
[13,18,"Dirección de Familias, Comunidades y Pueblos"]
[13,20,"Dirección de Infancias y Adolescencias"]
[13,19,"Dirección de Protección Especial"]
[13,22,"Dirección de Relación con la Ciudadanía"]
[13,21,"Dirección de Talento Humano"]
[13,17,"Dirección de Tecnologías de la Información"]
[13,1,"Dirección Regional"]
[13,6,"Grupo Administrativo"]
[13,4,"Grupo de Asistencia Técnica"]
[13,2,"Grupo de Planeación y Sistemas"]
[13,7,"Grupo Financiero"]
[13,3,"Grupo Jurídico"]
[13,9,"Oficina Asesora de Comunicaciones"]
[13,15,"Oficina de Aseguramiento a la Calidad"]
[13,5,"Oficina de Cooperación"]
[13,16,"Oficina de Gestión Regional"]
[13,14,"Oficina Jurídica"]
[14,11,"CZ Bahía Solano"]
[14,22,"CZ Baudó"]
[14,10,"CZ Istmina"]
[14,8,"CZ Quibdó"]
[14,12,"CZ Riosucio"]
[14,13,"CZ Tado"]
[14,18,"Dirección de Familias, Comunidades y Pueblos"]
[14,20,"Dirección de Infancias y Adolescencias"]
[14,19,"Dirección de Protección Especial"]
[14,23,"Dirección de Relación con la Ciudadanía"]
[14,21,"Dirección de Talento Humano"]
[14,17,"Dirección de Tecnologías de la Información"]
[14,1,"Dirección Regional"]
[14,6,"Grupo Administrativo"]
[14,4,"Grupo de Asistencia Técnica"]
[14,2,"Grupo de Planeación y Sistemas"]
[14,7,"Grupo Financiero"]
[14,3,"Grupo Jurídico"]
[14,9,"Oficina Asesora de Comunicaciones"]
[14,15,"Oficina de Aseguramiento a la Calidad"]
[14,5,"Oficina de Cooperación"]
[14,16,"Oficina de Gestión Regional"]
[14,14,"Oficina Jurídica"]
[15,8,"CZ 1 Montería"]
[15,10,"CZ Cerete"]
[15,14,"CZ Lorica"]
[15,13,"CZ Montelibano"]
[15,11,"CZ Planetarica"]
[15,15,"CZ Sahagun"]
[15,16,"CZ San Andres de Sotavento"]
[15,12,"CZ Tierralta"]
[15,21,"Dirección de Familias, Comunidades y Pueblos"]
[15,23,"Dirección de Infancias y Adolescencias"]
[15,22,"Dirección de Protección Especial"]
[15,25,"Dirección de Relación con la Ciudadanía"]
[15,24,"Dirección de Talento Humano"]
[15,20,"Dirección de Tecnologías de la Información"]
[15,1,"Dirección Regional"]
[15,6,"Grupo Administrativo"]
[15,4,"Grupo de Asistencia Técnica"]
[15,2,"Grupo de Planeación y Sistemas"]
[15,7,"Grupo Financiero"]
[15,3,"Grupo Jurídico"]
[15,9,"Oficina Asesora de Comunicaciones"]
[15,18,"Oficina de Aseguramiento a la Calidad"]
[15,5,"Oficina de Cooperación"]
[15,19,"Oficina de Gestión Regional"]
[15,17,"Oficina Jurídica"]
[16,16,"CZ Cáqueza"]
[16,11,"CZ Chocontá"]
[16,14,"CZ Facatativá"]
[16,15,"CZ Fusagasugá"]
[16,17,"CZ Gacheta"]
[16,18,"CZ Girardot"]
[16,19,"CZ La Mesa"]
[16,12,"CZ Pacho"]
[16,22,"CZ San Juan de Rio Seco"]
[16,8,"CZ Soacha"]
[16,21,"CZ Soacha Centro"]
[16,20,"CZ Ubate"]
[16,13,"CZ Villeta"]
[16,10,"CZ Zipaquirá"]
[16,27,"Dirección de Familias, Comunidades y Pueblos"]
[16,29,"Dirección de Infancias y Adolescencias"]
[16,28,"Dirección de Protección Especial"]
[16,31,"Dirección de Relación con la Ciudadanía"]
[16,30,"Dirección de Talento Humano"]
[16,23,"Dirección de Tecnologías de la Información"]
[16,1,"Dirección Regional"]
[16,6,"Grupo Administrativo"]
[16,4,"Grupo de Asistencia Técnica"]
[16,2,"Grupo de Planeación y Sistemas"]
[16,7,"Grupo Financiero"]
[16,3,"Grupo Jurídico"]
[16,9,"Oficina Asesora de Comunicaciones"]
[16,25,"Oficina de Aseguramiento a la Calidad"]
[16,5,"Oficina de Cooperación"]
[16,26,"Oficina de Gestión Regional"]
[16,24,"Oficina Jurídica"]
[17,4,"CZ Inírida"]
[17,11,"Dirección de Familias, Comunidades y Pueblos"]
[17,13,"Dirección de Infancias y Adolescencias"]
[17,12,"Dirección de Protección Especial"]
[17,15,"Dirección de Relación con la Ciudadanía"]
[17,14,"Dirección de Talento Humano"]
[17,10,"Dirección de Tecnologías de la Información"]
[17,1,"Dirección Regional"]
[17,2,"Grupo de Asistencia Técnica"]
[17,3,"Grupo de Gestión de Soporte"]
[17,6,"Oficina Asesora de Comunicaciones"]
[17,8,"Oficina de Aseguramiento a la Calidad"]
[17,5,"Oficina de Cooperación"]
[17,9,"Oficina de Gestión Regional"]
[17,7,"Oficina Jurídica"]
[18,11,"CZ Fonseca"]
[18,16,"CZ Ichitki Wayuuwaapule"]
[18,14,"CZ Maicao"]
[18,12,"CZ Manaure"]
[18,13,"CZ Nazareth"]
[18,8,"CZ Riohacha 1"]
[18,10,"CZ Riohacha 2"]
[18,20,"Dirección de Familias, Comunidades y Pueblos"]
[18,22,"Dirección de Infancias y Adolescencias"]
[18,21,"Dirección de Protección Especial"]
[18,24,"Dirección de Relación con la Ciudadanía"]
[18,23,"Dirección de Talento Humano"]
[18,15,"Dirección de Tecnologías de la Información"]
[18,2,"Dirección Regional"]
[18,6,"Grupo Administrativo"]
[18,5,"Grupo de Asistencia Técnica"]
[18,3,"Grupo de Planeación y Sistemas"]
[18,7,"Grupo Financiero"]
[18,4,"Grupo Jurídico"]
[18,9,"Oficina Asesora de Comunicaciones"]
[18,18,"Oficina de Aseguramiento a la Calidad"]
[18,1,"Oficina de Cooperación"]
[18,19,"Oficina de Gestión Regional"]
[18,17,"Oficina Jurídica"]
[19,4,"CZ San Jose de Guaviare"]
[19,11,"Dirección de Familias, Comunidades y Pueblos"]
[19,13,"Dirección de Infancias y Adolescencias"]
[19,12,"Dirección de Protección Especial"]
[19,15,"Dirección de Relación con la Ciudadanía"]
[19,14,"Dirección de Talento Humano"]
[19,10,"Dirección de Tecnologías de la Información"]
[19,1,"Dirección Regional"]
[19,2,"Grupo de Asistencia Técnica"]
[19,3,"Grupo de Gestión de Soporte"]
[19,6,"Oficina Asesora de Comunicaciones"]
[19,8,"Oficina de Aseguramiento a la Calidad"]
[19,5,"Oficina de Cooperación"]
[19,9,"Oficina de Gestión Regional"]
[19,7,"Oficina Jurídica"]
[20,10,"CZ Garzon"]
[20,13,"CZ La Gaitana"]
[20,11,"CZ La Plata"]
[20,8,"CZ Neiva"]
[20,12,"CZ Pitalito"]
[20,18,"Dirección de Familias, Comunidades y Pueblos"]
[20,20,"Dirección de Infancias y Adolescencias"]
[20,19,"Dirección de Protección Especial"]
[20,22,"Dirección de Relación con la Ciudadanía"]
[20,21,"Dirección de Talento Humano"]
[20,17,"Dirección de Tecnologías de la Información"]
[20,1,"Dirección Regional"]
[20,6,"Grupo Administrativo"]
[20,4,"Grupo de Asistencia Técnica"]
[20,2,"Grupo de Planeación y Sistemas"]
[20,7,"Grupo Financiero"]
[20,3,"Grupo Jurídico"]
[20,9,"Oficina Asesora de Comunicaciones"]
[20,15,"Oficina de Aseguramiento a la Calidad"]
[20,5,"Oficina de Cooperación"]
[20,16,"Oficina de Gestión Regional"]
[20,14,"Oficina Jurídica"]
[21,12,"CZ Ciénaga"]
[21,11,"CZ del Rio"]
[21,15,"CZ El Banco"]
[21,13,"CZ Fundación"]
[21,14,"CZ Plato"]
[21,16,"CZ Santa Ana"]
[21,10,"CZ Santa Marta 1"]
[21,8,"CZ Santa Marta 2"]
[21,21,"Dirección de Familias, Comunidades y Pueblos"]
[21,23,"Dirección de Infancias y Adolescencias"]
[21,22,"Dirección de Protección Especial"]
[21,25,"Dirección de Relación con la Ciudadanía"]
[21,24,"Dirección de Talento Humano"]
[21,20,"Dirección de Tecnologías de la Información"]
[21,1,"Dirección Regional"]
[21,6,"Grupo Administrativo"]
[21,4,"Grupo de Asistencia Técnica"]
[21,2,"Grupo de Planeación y Sistemas"]
[21,7,"Grupo Financiero"]
[21,3,"Grupo Jurídico"]
[21,9,"Oficina Asesora de Comunicaciones"]
[21,18,"Oficina de Aseguramiento a la Calidad"]
[21,5,"Oficina de Cooperación"]
[21,19,"Oficina de Gestión Regional"]
[21,17,"Oficina Jurídica"]
[22,12,"CZ Acacias"]
[22,11,"CZ Granada"]
[22,13,"CZ Puerto Lopez"]
[22,8,"CZ Villavicencio 1"]
[22,10,"CZ Villavicencio 2"]
[22,18,"Dirección de Familias, Comunidades y Pueblos"]
[22,20,"Dirección de Infancias y Adolescencias"]
[22,19,"Dirección de Protección Especial"]
[22,22,"Dirección de Relación con la Ciudadanía"]
[22,21,"Dirección de Talento Humano"]
[22,17,"Dirección de Tecnologías de la Información"]
[22,1,"Dirección Regional"]
[22,6,"Grupo Administrativo"]
[22,4,"Grupo de Asistencia Técnica"]
[22,2,"Grupo de Planeación y Sistemas"]
[22,7,"Grupo Financiero"]
[22,3,"Grupo Jurídico"]
[22,9,"Oficina Asesora de Comunicaciones"]
[22,15,"Oficina de Aseguramiento a la Calidad"]
[22,5,"Oficina de Cooperación"]
[22,16,"Oficina de Gestión Regional"]
[22,14,"Oficina Jurídica"]
[23,15,"CZ Barbacoas"]
[23,12,"CZ Ipiales"]
[23,14,"CZ La Unión"]
[23,8,"CZ Pasto 1"]
[23,10,"CZ Pasto 2"]
[23,16,"CZ Remolino"]
[23,11,"CZ Tumaco"]
[23,13,"CZ Tuquerres"]
[23,21,"Dirección de Familias, Comunidades y Pueblos"]
[23,23,"Dirección de Infancias y Adolescencias"]
[23,22,"Dirección de Protección Especial"]
[23,25,"Dirección de Relación con la Ciudadanía"]
[23,24,"Dirección de Talento Humano"]
[23,20,"Dirección de Tecnologías de la Información"]
[23,1,"Dirección Regional"]
[23,6,"Grupo Administrativo"]
[23,4,"Grupo de Asistencia Técnica"]
[23,2,"Grupo de Planeación y Sistemas"]
[23,7,"Grupo Financiero"]
[23,3,"Grupo Jurídico"]
[23,9,"Oficina Asesora de Comunicaciones"]
[23,18,"Oficina de Aseguramiento a la Calidad"]
[23,5,"Oficina de Cooperación"]
[23,19,"Oficina de Gestión Regional"]
[23,17,"Oficina Jurídica"]
[24,8,"CZ Cúcuta 1"]
[24,10,"CZ Cúcuta 2"]
[24,11,"CZ Cúcuta 3"]
[24,12,"CZ Ocaña"]
[24,13,"CZ Pamplona"]
[24,14,"CZ Tibú"]
[24,19,"Dirección de Familias, Comunidades y Pueblos"]
[24,21,"Dirección de Infancias y Adolescencias"]
[24,20,"Dirección de Protección Especial"]
[24,23,"Dirección de Relación con la Ciudadanía"]
[24,22,"Dirección de Talento Humano"]
[24,18,"Dirección de Tecnologías de la Información"]
[24,1,"Dirección Regional"]
[24,6,"Grupo Administrativo"]
[24,4,"Grupo de Asistencia Técnica"]
[24,2,"Grupo de Planeación y Sistemas"]
[24,7,"Grupo Financiero"]
[24,3,"Grupo Jurídico"]
[24,9,"Oficina Asesora de Comunicaciones"]
[24,16,"Oficina de Aseguramiento a la Calidad"]
[24,5,"Oficina de Cooperación"]
[24,17,"Oficina de Gestión Regional"]
[24,15,"Oficina Jurídica"]
[25,12,"CZ La Hormiga"]
[25,8,"CZ Mocoa"]
[25,11,"CZ Puerto Asis"]
[25,10,"CZ Sibundoy"]
[25,17,"Dirección de Familias, Comunidades y Pueblos"]
[25,19,"Dirección de Infancias y Adolescencias"]
[25,18,"Dirección de Protección Especial"]
[25,21,"Dirección de Relación con la Ciudadanía"]
[25,20,"Dirección de Talento Humano"]
[25,16,"Dirección de Tecnologías de la Información"]
[25,1,"Dirección Regional"]
[25,6,"Grupo Administrativo"]
[25,4,"Grupo de Asistencia Técnica"]
[25,2,"Grupo de Planeación y Sistemas"]
[25,7,"Grupo Financiero"]
[25,3,"Grupo Jurídico"]
[25,9,"Oficina Asesora de Comunicaciones"]
[25,14,"Oficina de Aseguramiento a la Calidad"]
[25,5,"Oficina de Cooperación"]
[25,15,"Oficina de Gestión Regional"]
[25,13,"Oficina Jurídica"]
[26,10,"CZ Armenia Norte"]
[26,8,"CZ Armenia Sur"]
[26,11,"CZ Calarcá"]
[26,16,"Dirección de Familias, Comunidades y Pueblos"]
[26,18,"Dirección de Infancias y Adolescencias"]
[26,17,"Dirección de Protección Especial"]
[26,20,"Dirección de Relación con la Ciudadanía"]
[26,19,"Dirección de Talento Humano"]
[26,15,"Dirección de Tecnologías de la Información"]
[26,1,"Dirección Regional"]
[26,6,"Grupo Administrativo"]
[26,4,"Grupo de Asistencia Técnica"]
[26,2,"Grupo de Planeación y Sistemas"]
[26,7,"Grupo Financiero"]
[26,3,"Grupo Jurídico"]
[26,9,"Oficina Asesora de Comunicaciones"]
[26,13,"Oficina de Aseguramiento a la Calidad"]
[26,5,"Oficina de Cooperación"]
[26,14,"Oficina de Gestión Regional"]
[26,12,"Oficina Jurídica"]
[27,12,"CZ Belen de Umbria"]
[27,11,"CZ Dos Quebradas"]
[27,10,"CZ La Virginia"]
[27,8,"CZ Pereira"]
[27,13,"CZ Santa Rosa de Cabal"]
[27,18,"Dirección de Familias, Comunidades y Pueblos"]
[27,20,"Dirección de Infancias y Adolescencias"]
[27,19,"Dirección de Protección Especial"]
[27,22,"Dirección de Relación con la Ciudadanía"]
[27,21,"Dirección de Talento Humano"]
[27,17,"Dirección de Tecnologías de la Información"]
[27,1,"Dirección Regional"]
[27,6,"Grupo Administrativo"]
[27,4,"Grupo de Asistencia Técnica"]
[27,2,"Grupo de Planeación y Sistemas"]
[27,7,"Grupo Financiero"]
[27,3,"Grupo Jurídico"]
[27,9,"Oficina Asesora de Comunicaciones"]
[27,15,"Oficina de Aseguramiento a la Calidad"]
[27,5,"Oficina de Cooperación"]
[27,16,"Oficina de Gestión Regional"]
[27,14,"Oficina Jurídica"]
[28,8,"CZ Los Almendros"]
[28,14,"Dirección de Familias, Comunidades y Pueblos"]
[28,16,"Dirección de Infancias y Adolescencias"]
[28,15,"Dirección de Protección Especial"]
[28,18,"Dirección de Relación con la Ciudadanía"]
[28,17,"Dirección de Talento Humano"]
[28,13,"Dirección de Tecnologías de la Información"]
[28,1,"Dirección Regional"]
[28,6,"Grupo Administrativo"]
[28,4,"Grupo de Asistencia Técnica"]
[28,2,"Grupo de Planeación y Sistemas"]
[28,7,"Grupo Financiero"]
[28,3,"Grupo Jurídico"]
[28,9,"Oficina Asesora de Comunicaciones"]
[28,11,"Oficina de Aseguramiento a la Calidad"]
[28,5,"Oficina de Cooperación"]
[28,12,"Oficina de Gestión Regional"]
[28,10,"Oficina Jurídica"]
[29,8,"CZ Antonia Santos"]
[29,10,"CZ Bucaramanga Sur"]
[29,11,"CZ Carlos Lleras Restrepo"]
[29,14,"CZ La Floresta"]
[29,12,"CZ Luis Carlos Galán Sarmiento"]
[29,19,"CZ Málaga"]
[29,18,"CZ Resurgir"]
[29,15,"CZ San Gil"]
[29,16,"CZ Socorro"]
[29,17,"CZ Velez"]
[29,13,"CZ Yariquies"]
[29,24,"Dirección de Familias, Comunidades y Pueblos"]
[29,26,"Dirección de Infancias y Adolescencias"]
[29,25,"Dirección de Protección Especial"]
[29,28,"Dirección de Relación con la Ciudadanía"]
[29,27,"Dirección de Talento Humano"]
[29,22,"Dirección de Tecnologías de la Información"]
[29,1,"Dirección Regional"]
[29,6,"Grupo Administrativo"]
[29,4,"Grupo de Asistencia Técnica"]
[29,2,"Grupo de Planeación y Sistemas"]
[29,7,"Grupo Financiero"]
[29,3,"Grupo Jurídico"]
[29,9,"Oficina Asesora de Comunicaciones"]
[29,21,"Oficina de Aseguramiento a la Calidad"]
[29,5,"Oficina de Cooperación"]
[29,23,"Oficina de Gestión Regional"]
[29,20,"Oficina Jurídica"]
[30,8,"CZ Boston"]
[30,12,"CZ La Mojana"]
[30,10,"CZ Norte"]
[30,11,"CZ Sincelejo"]
[30,17,"Dirección de Familias, Comunidades y Pueblos"]
[30,19,"Dirección de Infancias y Adolescencias"]
[30,18,"Dirección de Protección Especial"]
[30,21,"Dirección de Relación con la Ciudadanía"]
[30,20,"Dirección de Talento Humano"]
[30,16,"Dirección de Tecnologías de la Información"]
[30,1,"Dirección Regional"]
[30,6,"Grupo Administrativo"]
[30,4,"Grupo de Asistencia Técnica"]
[30,2,"Grupo de Planeación y Sistemas"]
[30,7,"Grupo Financiero"]
[30,3,"Grupo Jurídico"]
[30,9,"Oficina Asesora de Comunicaciones"]
[30,14,"Oficina de Aseguramiento a la Calidad"]
[30,5,"Oficina de Cooperación"]
[30,15,"Oficina de Gestión Regional"]
[30,13,"Oficina Jurídica"]
[31,16,"CZ Chaparral"]
[31,15,"CZ Espinal"]
[31,10,"CZ Galán"]
[31,14,"CZ Honda"]
[31,11,"CZ Ibagué"]
[31,8,"CZ Jordan"]
[31,13,"CZ Lérida"]
[31,12,"CZ Libano"]
[31,18,"CZ Melgar"]
[31,17,"CZ Purificación"]
[31,23,"Dirección de Familias, Comunidades y Pueblos"]
[31,25,"Dirección de Infancias y Adolescencias"]
[31,24,"Dirección de Protección Especial"]
[31,27,"Dirección de Relación con la Ciudadanía"]
[31,26,"Dirección de Talento Humano"]
[31,22,"Dirección de Tecnologías de la Información"]
[31,1,"Dirección Regional"]
[31,6,"Grupo Administrativo"]
[31,4,"Grupo de Asistencia Técnica"]
[31,2,"Grupo de Planeación y Sistemas"]
[31,7,"Grupo Financiero"]
[31,3,"Grupo Jurídico"]
[31,9,"Oficina Asesora de Comunicaciones"]
[31,20,"Oficina de Aseguramiento a la Calidad"]
[31,5,"Oficina de Cooperación"]
[31,21,"Oficina de Gestión Regional"]
[31,19,"Oficina Jurídica"]
[32,26,"CZ Buenaventura"]
[32,19,"CZ Buga"]
[32,24,"CZ Cartago"]
[32,14,"CZ Centro"]
[32,16,"CZ Jamundí"]
[32,13,"CZ Ladera"]
[32,12,"CZ Nororiental"]
[32,18,"CZ Palmira"]
[32,25,"CZ Restaurar"]
[32,22,"CZ Roldanillo"]
[32,21,"CZ Sevilla"]
[32,15,"CZ Sur"]
[32,11,"CZ Suroriental"]
[32,20,"CZ Tulua"]
[32,17,"CZ Yumbo"]
[32,30,"Dirección de Familias, Comunidades y Pueblos"]
[32,32,"Dirección de Infancias y Adolescencias"]
[32,31,"Dirección de Protección Especial"]
[32,34,"Dirección de Relación con la Ciudadanía"]
[32,33,"Dirección de Talento Humano"]
[32,23,"Dirección de Tecnologías de la Información"]
[32,1,"Dirección Regional"]
[32,8,"Grupo Administrativo"]
[32,6,"Grupo de Atencion en Ciclos de Vida y Nutrición"]
[32,2,"Grupo de Gestión Humana"]
[32,3,"Grupo de Planeación y Sistemas"]
[32,7,"Grupo de Proteccion"]
[32,10,"Grupo Financiero"]
[32,4,"Grupo Jurídico"]
[32,9,"Oficina Asesora de Comunicaciones"]
[32,28,"Oficina de Aseguramiento a la Calidad"]
[32,5,"Oficina de Cooperación"]
[32,29,"Oficina de Gestión Regional"]
[32,27,"Oficina Jurídica"]
[33,4,"CZ Mitú"]
[33,11,"Dirección de Familias, Comunidades y Pueblos"]
[33,13,"Dirección de Infancias y Adolescencias"]
[33,12,"Dirección de Protección Especial"]
[33,15,"Dirección de Relación con la Ciudadanía"]
[33,14,"Dirección de Talento Humano"]
[33,10,"Dirección de Tecnologías de la Información"]
[33,1,"Dirección Regional"]
[33,2,"Grupo de Asistencia Técnica"]
[33,3,"Grupo de Gestión de Soporte"]
[33,6,"Oficina Asesora de Comunicaciones"]
[33,8,"Oficina de Aseguramiento a la Calidad"]
[33,5,"Oficina de Cooperación"]
[33,9,"Oficina de Gestión Regional"]
[33,7,"Oficina Jurídica"]
[34,6,"CZ Puerto Carreño"]
[34,11,"Dirección de Familias, Comunidades y Pueblos"]
[34,13,"Dirección de Infancias y Adolescencias"]
[34,12,"Dirección de Protección Especial"]
[34,15,"Dirección de Relación con la Ciudadanía"]
[34,14,"Dirección de Talento Humano"]
[34,10,"Dirección de Tecnologías de la Información"]
[34,1,"Dirección Regional"]
[34,2,"Grupo de Asistencia Técnica"]
[34,3,"Grupo de Gestión de Soporte"]
[34,4,"Oficina Asesora de Comunicaciones"]
[34,8,"Oficina de Aseguramiento a la Calidad"]
[34,5,"Oficina de Cooperación"]
[34,9,"Oficina de Gestión Regional"]
[34,7,"Oficina Jurídica"]

{"sheet":"Area","index":9,"n_rows":1329,"n_cols":3,"rows_kept":1329,"cut":false,"hidden":true,"merged":[]}
["Codigo1","Codigo2","Área / Centro Zonal"]
[1,105,"Comisión de Personal"]
[1,106,"Comité de Coordinación del Sistema de Control Interno"]
[1,107,"Comité de Defensa Judicial y Conciliación"]
[1,3,"Dirección Administrativa"]
[1,7,"Dirección de Abastecimiento"]
[1,4,"Dirección de Contratación"]
[1,5,"Dirección de Familias, Comunidades y Pueblos"]
[1,95,"Dirección de Infancias y Adolescencias"]
[1,8,"Dirección de Nutrición"]
[1,9,"Dirección de Planeación y Control de la Gestión"]
[1,10,"Dirección de Primera Infancia"]
[1,11,"Dirección de Protección Especial"]
[1,103,"Dirección de Relación con la Ciudadanía"]
[1,12,"Dirección de Servicio y Atención"]
[1,102,"Dirección de Talento Humano"]
[1,6,"Dirección de Tecnologías de la Información"]
[1,2,"Dirección Financiera"]
[1,1,"Dirección General"]
[1,13,"Dirección Sistema Nacional de Bienestar Familiar"]
[1,88,"Director(A) Adolescencia Y Juventud"]
[1,86,"Director(A) de Familias, Comunidades y Pueblos"]
[1,84,"Director(A) De Infancia"]
[1,82,"Director(A) De Nutrición"]
[1,81,"Director(A) De Protección"]
[1,89,"Director(A) Del Snbf"]
[1,87,"Director(A) Infancia O Director(A) Adolescencia Y Juventud"]
[1,83,"Director(A) Primera Infancia"]
[1,16,"Grupo de Administración de Carrera Administrativa"]
[1,17,"Grupo de Almacén e Inventarios"]
[1,18,"Grupo de Apoyo Logístico"]
[1,19,"Grupo de Asesoría Jurídica"]
[1,80,"Grupo de Asistencia Técnica"]
[1,15,"Grupo de Asistencia Técnica del Sistema de Aseguramiento de la Calidad"]
[1,20,"Grupo de Atencion en Ciclos de Vida y Nutrición"]
[1,21,"Grupo de Auditorias de Calidad"]
[1,22,"Grupo de Comunicación Externa"]
[1,23,"Grupo de Comunicación Interna"]
[1,24,"Grupo de Contabilidad"]
[1,25,"Grupo de Control Constitucional y Estrategias Jurídicas"]
[1,26,"Grupo de Coordinación de Autoridades Administrativas"]
[1,27,"Grupo de Desarrollo del Talento Humano"]
[1,28,"Grupo de Estadística y Gestión de Informacion"]
[1,29,"Grupo de Familia"]
[1,30,"Grupo de Gestión de Bienes"]
[1,31,"Grupo de Gestión de Calidad Para el Servicio y la Atencion"]
[1,32,"Grupo de Gestión de Canales Centro de Contacto"]
[1,33,"Grupo de Gestión Documental"]
[1,34,"Grupo de Gestión Técnica en Nutrición"]
[1,35,"Grupo de Infraestructura Inmobiliaria"]
[1,36,"Grupo de Investigaciones Disciplinarias"]
[1,37,"Grupo de Jurisdicción Coactiva"]
[1,38,"Grupo de Nomina y Seguridad Social"]
[1,39,"Grupo de Personerías Jurídicas y Licencias de Funcionamiento"]
[1,40,"Grupo de Plan de Compras y Contratación"]
[1,41,"Grupo de Planeación Administrativa"]
[1,42,"Grupo de Planeación y Seguimiento Financiero y de Gestión"]
[1,43,"Grupo de Prensa"]
[1,44,"Grupo de Presupuesto"]
[1,45,"Grupo de Prevención"]
[1,46,"Grupo de Procesos de Apoyo"]
[1,47,"Grupo de Procesos Misionales"]
[1,48,"Grupo de Quejas"]
[1,49,"Grupo de Recaudo"]
[1,50,"Grupo de Registro y Control"]
[1,51,"Grupo de Representación Judicial"]
[1,52,"Grupo de Supervisión Contractual"]
[1,53,"Grupo de Tesorería"]
[1,54,"Grupo Especial de Actuación Inmediata"]
[1,55,"Grupo Financiero Sede de la Dirección General"]
[1,56,"Oficina Asesora de Comunicaciones"]
[1,58,"Oficina de Aseguramiento a la Calidad"]
[1,60,"Oficina de Control Disciplinario Interno"]
[1,59,"Oficina de Control Interno"]
[1,61,"Oficina de Cooperación"]
[1,62,"Oficina de Gestión Regional"]
[1,90,"Oficina de Inspección, Vigilancia y Control, y Calidad de Servicios"]
[1,57,"Oficina Jurídica"]
[1,104,"Órganos Internos de Asesoría y Coordinación"]
[1,14,"Secretaría General"]
[1,63,"Subdirección de Adopciones"]
[1,64,"Subdirección de Articulación Nacional del SNBF"]
[1,65,"Subdirección de Articulación Territorial del SNBF"]
[1,101,"Subdirección de Atención en Alimentación y Nutrición"]
[1,96,"Subdirección de Atención Integral a Niños, Niñas y Adolescentes"]
[1,93,"Subdirección de Atención Integral Familiar Comunitaria"]
[1,92,"Subdirección de Atención Integral lnterinstitucional"]
[1,94,"Subdirección de Atención Integral Propia e Intercultural"]
[1,91,"Subdirección de Autoridades Administrativas"]
[1,98,"Subdirección de Familias y Comunidades"]
[1,100,"Subdirección de Gestión Estratégica para el Derecho Humano a la Alimentación"]
[1,66,"Subdirección de Mejoramiento Organizacional"]
[1,67,"Subdirección de Monitoreo y Evaluación"]
[1,68,"Subdirección de Operación de la Atencion a la Primera Infancia"]
[1,97,"Subdirección de Prevención de Vulneraciones a Niños, Niñas y Adolescentes"]
[1,69,"Subdirección de Programación"]
[1,99,"Subdirección de Pueblos Étnicos y Campesinos"]
[1,70,"Subdirección de Recursos Tecnológicos"]
[1,71,"Subdirección de Responsabilidad Penal"]
[1,72,"Subdirección de Restablecimiento de Derechos"]
[1,73,"Subdirección de Sistemas Integrados de Informacion"]
[1,74,"Subdirección General"]
[1,75,"Subdirección Gestión Técnica para la Atención a la Familia y Comunidades"]
[1,76,"Subdirección Gestión Técnica para la Atención a la Niñez y Adolescencia"]
[1,77,"Subdirección Gestión Técnica para la Atención a la Primera Infancia"]
[1,78,"Subdirección Operación de la Atencion a la Familia y Comunidades"]
[1,79,"Subdirección Operación de la Atencion a la Niñez y a la Adolescencia"]
[1,85,"Subdirector(A) General"]
[2,3,"Dirección Administrativa"]
[2,7,"Dirección de Abastecimiento"]
[2,4,"Dirección de Contratación"]
[2,34,"Dirección de Familias, Comunidades y Pueblos"]
[2,35,"Dirección de Infancias y Adolescencias"]
[2,8,"Dirección de Nutrición"]
[2,9,"Dirección de Planeación y Control de la Gestión"]
[2,11,"Dirección de Primera Infancia"]
[2,13,"Dirección de Protección Especial"]
[2,36,"Dirección de Relación con la Ciudadanía"]
[2,10,"Dirección de Servicio y Atención"]
[2,5,"Dirección de Talento Humano"]
[2,6,"Dirección de Tecnologías de la Información"]
[2,12,"Dirección Financiera"]
[2,16,"Dirección Sistema Nacional de Bienestar Familiar"]
[2,32,"Director(A) Adolescencia Y Juventud"]
[2,30,"Director(A) de Familias, Comunidades y Pueblos"]
[2,28,"Director(A) De Infancia"]
[2,26,"Director(A) De Nutrición"]
[2,25,"Director(A) De Protección"]
[2,33,"Director(A) Del Snbf"]
[2,31,"Director(A) Infancia O Director(A) Adolescencia Y Juventud"]
[2,27,"Director(A) Primera Infancia"]
[2,18,"Grupo de Asistencia Técnica"]
[2,19,"Grupo de Atencion en Ciclos de Vida y Nutrición"]
[2,20,"Grupo de Recaudo"]
[2,22,"Oficina Asesora de Comunicaciones"]
[2,21,"Oficina de Aseguramiento a La Calidad"]
[2,24,"Oficina de Cooperación"]
[2,37,"Oficina de Gestión Regional"]
[2,23,"Oficina Jurídica"]
[2,1,"Secretaría General"]
[2,14,"Subdirección de Mejoramiento Organizacional"]
[2,15,"Subdirección de Monitoreo y Evaluación"]
[2,17,"Subdirección de Programación"]
[2,2,"Subdirección General"]
[2,29,"Subdirector(A) General"]
[3,3,"Dirección Administrativa"]
[3,7,"Dirección de Abastecimiento"]
[3,4,"Dirección de Contratación"]
[3,34,"Dirección de Familias, Comunidades y Pueblos"]
[3,35,"Dirección de Infancias y Adolescencias"]
[3,8,"Dirección de Nutrición"]
[3,9,"Dirección de Planeación y Control de la Gestión"]
[3,11,"Dirección de Primera Infancia"]
[3,13,"Dirección de Protección Especial"]
[3,36,"Dirección de Relación con la Ciudadanía"]
[3,10,"Dirección de Servicio y Atención"]
[3,5,"Dirección de Talento Humano"]
[3,6,"Dirección de Tecnologías de la Información"]
[3,12,"Dirección Financiera"]
[3,16,"Dirección Sistema Nacional de Bienestar Familiar"]
[3,32,"Director(A) Adolescencia Y Juventud"]
[3,30,"Director(A) de Familias, Comunidades y Pueblos"]
[3,28,"Director(A) De Infancia"]
[3,26,"Director(A) De Nutrición"]
[3,25,"Director(A) De Protección"]
[3,33,"Director(A) Del Snbf"]
[3,31,"Director(A) Infancia O Director(A) Adolescencia Y Juventud"]
[3,27,"Director(A) Primera Infancia"]
[3,18,"Grupo de Asistencia Técnica"]
[3,19,"Grupo de Atencion en Ciclos de Vida y Nutrición"]
[3,20,"Grupo de Recaudo"]
[3,22,"Oficina Asesora de Comunicaciones"]
[3,21,"Oficina de Aseguramiento a La Calidad"]
[3,24,"Oficina de Cooperación"]
[3,37,"Oficina de Gestión Regional"]
[3,23,"Oficina Jurídica"]
[3,1,"Secretaría General"]
[3,14,"Subdirección de Mejoramiento Organizacional"]
[3,15,"Subdirección de Monitoreo y Evaluación"]
[3,17,"Subdirección de Programación"]
[3,2,"Subdirección General"]
[3,29,"Subdirector(A) General"]
[4,3,"Dirección Administrativa"]
[4,7,"Dirección de Abastecimiento"]
[4,4,"Dirección de Contratación"]
[4,34,"Dirección de Familias, Comunidades y Pueblos"]
[4,35,"Dirección de Infancias y Adolescencias"]
[4,8,"Dirección de Nutrición"]
[4,9,"Dirección de Planeación y Control de la Gestión"]
[4,11,"Dirección de Primera Infancia"]
[4,13,"Dirección de Protección Especial"]
[4,36,"Dirección de Relación con la Ciudadanía"]
[4,10,"Dirección de Servicio y Atención"]
[4,5,"Dirección de Talento Humano"]
[4,6,"Dirección de Tecnologías de la Información"]
[4,12,"Dirección Financiera"]
[4,16,"Dirección Sistema Nacional de Bienestar Familiar"]
[4,32,"Director(A) Adolescencia Y Juventud"]
[4,30,"Director(A) de Familias, Comunidades y Pueblos"]
[4,28,"Director(A) De Infancia"]
[4,26,"Director(A) De Nutrición"]
[4,25,"Director(A) De Protección"]
[4,33,"Director(A) Del Snbf"]
[4,31,"Director(A) Infancia O Director(A) Adolescencia Y Juventud"]
[4,27,"Director(A) Primera Infancia"]
[4,18,"Grupo de Asistencia Técnica"]
[4,19,"Grupo de Atencion en Ciclos de Vida y Nutrición"]
[4,20,"Grupo de Recaudo"]
[4,22,"Oficina Asesora de Comunicaciones"]
[4,21,"Oficina de Aseguramiento a La Calidad"]
[4,24,"Oficina de Cooperación"]
[4,37,"Oficina de Gestión Regional"]
[4,23,"Oficina Jurídica"]
[4,1,"Secretaría General"]
[4,14,"Subdirección de Mejoramiento Organizacional"]
[4,15,"Subdirección de Monitoreo y Evaluación"]
[4,17,"Subdirección de Programación"]
[4,2,"Subdirección General"]
[4,29,"Subdirector(A) General"]
[5,3,"Dirección Administrativa"]
[5,7,"Dirección de Abastecimiento"]
[5,4,"Dirección de Contratación"]
[5,34,"Dirección de Familias, Comunidades y Pueblos"]
[5,35,"Dirección de Infancias y Adolescencias"]
[5,8,"Dirección de Nutrición"]
[5,9,"Dirección de Planeación y Control de la Gestión"]
[5,11,"Dirección de Primera Infancia"]
[5,13,"Dirección de Protección Especial"]
[5,36,"Dirección de Relación con la Ciudadanía"]
[5,10,"Dirección de Servicio y Atención"]
[5,5,"Dirección de Talento Humano"]
[5,6,"Dirección de Tecnologías de la Información"]
[5,12,"Dirección Financiera"]
[5,16,"Dirección Sistema Nacional de Bienestar Familiar"]
[5,32,"Director(A) Adolescencia Y Juventud"]
[5,30,"Director(A) de Familias, Comunidades y Pueblos"]
[5,28,"Director(A) De Infancia"]
[5,26,"Director(A) De Nutrición"]
[5,25,"Director(A) De Protección"]
[5,33,"Director(A) Del Snbf"]
[5,31,"Director(A) Infancia O Director(A) Adolescencia Y Juventud"]
[5,27,"Director(A) Primera Infancia"]
[5,18,"Grupo de Asistencia Técnica"]
[5,19,"Grupo de Atencion en Ciclos de Vida y Nutrición"]
[5,20,"Grupo de Recaudo"]
[5,22,"Oficina Asesora de Comunicaciones"]
[5,21,"Oficina de Aseguramiento a La Calidad"]
[5,24,"Oficina de Cooperación"]
[5,37,"Oficina de Gestión Regional"]
[5,23,"Oficina Jurídica"]
[5,1,"Secretaría General"]
[5,14,"Subdirección de Mejoramiento Organizacional"]
[5,15,"Subdirección de Monitoreo y Evaluación"]
[5,17,"Subdirección de Programación"]
[5,2,"Subdirección General"]
[5,29,"Subdirector(A) General"]
[6,3,"Dirección Administrativa"]
[6,7,"Dirección de Abastecimiento"]
[6,4,"Dirección de Contratación"]
[6,34,"Dirección de Familias, Comunidades y Pueblos"]
[6,35,"Dirección de Infancias y Adolescencias"]
[6,8,"Dirección de Nutrición"]
[6,9,"Dirección de Planeación y Control de la Gestión"]
[6,11,"Dirección de Primera Infancia"]
[6,13,"Dirección de Protección Especial"]
[6,36,"Dirección de Relación con la Ciudadanía"]
[6,10,"Dirección de Servicio y Atención"]
[6,5,"Dirección de Talento Humano"]
[6,6,"Dirección de Tecnologías de la Información"]
[6,12,"Dirección Financiera"]
[6,16,"Dirección Sistema Nacional de Bienestar Familiar"]
[6,32,"Director(A) Adolescencia Y Juventud"]
[6,30,"Director(A) de Familias, Comunidades y Pueblos"]
[6,28,"Director(A) De Infancia"]
[6,26,"Director(A) De Nutrición"]
[6,25,"Director(A) De Protección"]
[6,33,"Director(A) Del Snbf"]
[6,31,"Director(A) Infancia O Director(A) Adolescencia Y Juventud"]
[6,27,"Director(A) Primera Infancia"]
[6,18,"Grupo de Asistencia Técnica"]
[6,19,"Grupo de Atencion en Ciclos de Vida y Nutrición"]
[6,20,"Grupo de Recaudo"]
[6,22,"Oficina Asesora de Comunicaciones"]
[6,21,"Oficina de Aseguramiento a La Calidad"]
[6,24,"Oficina de Cooperación"]
[6,37,"Oficina de Gestión Regional"]
[6,23,"Oficina Jurídica"]
[6,1,"Secretaría General"]
[6,14,"Subdirección de Mejoramiento Organizacional"]
[6,15,"Subdirección de Monitoreo y Evaluación"]
[6,17,"Subdirección de Programación"]
[6,2,"Subdirección General"]
[6,29,"Subdirector(A) General"]
[7,3,"Dirección Administrativa"]
[7,7,"Dirección de Abastecimiento"]
[7,4,"Dirección de Contratación"]
[7,34,"Dirección de Familias, Comunidades y Pueblos"]
[7,35,"Dirección de Infancias y Adolescencias"]
[7,8,"Dirección de Nutrición"]
[7,9,"Dirección de Planeación y Control de la Gestión"]
[7,11,"Dirección de Primera Infancia"]
[7,13,"Dirección de Protección Especial"]
[7,36,"Dirección de Relación con la Ciudadanía"]
[7,10,"Dirección de Servicio y Atención"]
[7,5,"Dirección de Talento Humano"]
[7,6,"Dirección de Tecnologías de la Información"]
[7,12,"Dirección Financiera"]
[7,16,"Dirección Sistema Nacional de Bienestar Familiar"]
[7,32,"Director(A) Adolescencia Y Juventud"]
[7,30,"Director(A) de Familias, Comunidades y Pueblos"]
[7,28,"Director(A) De Infancia"]
[7,26,"Director(A) De Nutrición"]
[7,25,"Director(A) De Protección"]
[7,33,"Director(A) Del Snbf"]
[7,31,"Director(A) Infancia O Director(A) Adolescencia Y Juventud"]
[7,27,"Director(A) Primera Infancia"]
[7,18,"Grupo de Asistencia Técnica"]
[7,19,"Grupo de Atencion en Ciclos de Vida y Nutrición"]
[7,20,"Grupo de Recaudo"]
[7,22,"Oficina Asesora de Comunicaciones"]
[7,21,"Oficina de Aseguramiento a La Calidad"]
[7,24,"Oficina de Cooperación"]
[7,37,"Oficina de Gestión Regional"]
[7,23,"Oficina Jurídica"]
[7,1,"Secretaría General"]
[7,14,"Subdirección de Mejoramiento Organizacional"]
[7,15,"Subdirección de Monitoreo y Evaluación"]
[7,17,"Subdirección de Programación"]
[7,2,"Subdirección General"]
[7,29,"Subdirector(A) General"]
[8,3,"Dirección Administrativa"]
[8,7,"Dirección de Abastecimiento"]
[8,4,"Dirección de Contratación"]
[8,34,"Dirección de Familias, Comunidades y Pueblos"]
[8,35,"Dirección de Infancias y Adolescencias"]
[8,8,"Dirección de Nutrición"]
[8,9,"Dirección de Planeación y Control de la Gestión"]
[8,11,"Dirección de Primera Infancia"]
[8,13,"Dirección de Protección Especial"]
[8,36,"Dirección de Relación con la Ciudadanía"]
[8,10,"Dirección de Servicio y Atención"]
[8,5,"Dirección de Talento Humano"]
[8,6,"Dirección de Tecnologías de la Información"]
[8,12,"Dirección Financiera"]
[8,16,"Dirección Sistema Nacional de Bienestar Familiar"]
[8,32,"Director(A) Adolescencia Y Juventud"]
[8,30,"Director(A) de Familias, Comunidades y Pueblos"]
[8,28,"Director(A) De Infancia"]
[8,26,"Director(A) De Nutrición"]
[8,25,"Director(A) De Protección"]
[8,33,"Director(A) Del Snbf"]
[8,31,"Director(A) Infancia O Director(A) Adolescencia Y Juventud"]
[8,27,"Director(A) Primera Infancia"]
[8,18,"Grupo de Asistencia Técnica"]
[8,19,"Grupo de Atencion en Ciclos de Vida y Nutrición"]
[8,20,"Grupo de Recaudo"]
[8,22,"Oficina Asesora de Comunicaciones"]
[8,21,"Oficina de Aseguramiento a La Calidad"]
[8,24,"Oficina de Cooperación"]
[8,37,"Oficina de Gestión Regional"]
[8,23,"Oficina Jurídica"]
[8,1,"Secretaría General"]
[8,14,"Subdirección de Mejoramiento Organizacional"]
[8,15,"Subdirección de Monitoreo y Evaluación"]
[8,17,"Subdirección de Programación"]
[8,2,"Subdirección General"]
[8,29,"Subdirector(A) General"]
[9,3,"Dirección Administrativa"]
[9,7,"Dirección de Abastecimiento"]
[9,4,"Dirección de Contratación"]
[9,34,"Dirección de Familias, Comunidades y Pueblos"]
[9,35,"Dirección de Infancias y Adolescencias"]
[9,8,"Dirección de Nutrición"]
[9,9,"Dirección de Planeación y Control de la Gestión"]
[9,11,"Dirección de Primera Infancia"]
[9,13,"Dirección de Protección Especial"]
[9,36,"Dirección de Relación con la Ciudadanía"]
[9,10,"Dirección de Servicio y Atención"]
[9,5,"Dirección de Talento Humano"]
[9,6,"Dirección de Tecnologías de la Información"]
[9,12,"Dirección Financiera"]
[9,16,"Dirección Sistema Nacional de Bienestar Familiar"]
[9,32,"Director(A) Adolescencia Y Juventud"]
[9,30,"Director(A) de Familias, Comunidades y Pueblos"]
[9,28,"Director(A) De Infancia"]
[9,26,"Director(A) De Nutrición"]
[9,25,"Director(A) De Protección"]
[9,33,"Director(A) Del Snbf"]
[9,31,"Director(A) Infancia O Director(A) Adolescencia Y Juventud"]
[9,27,"Director(A) Primera Infancia"]
[9,18,"Grupo de Asistencia Técnica"]
[9,19,"Grupo de Atencion en Ciclos de Vida y Nutrición"]
[9,20,"Grupo de Recaudo"]
[9,22,"Oficina Asesora de Comunicaciones"]
[9,21,"Oficina de Aseguramiento a La Calidad"]
[9,24,"Oficina de Cooperación"]
[9,37,"Oficina de Gestión Regional"]
[9,23,"Oficina Jurídica"]
[9,1,"Secretaría General"]
[9,14,"Subdirección de Mejoramiento Organizacional"]
[9,15,"Subdirección de Monitoreo y Evaluación"]
[9,17,"Subdirección de Programación"]
[9,2,"Subdirección General"]
[9,29,"Subdirector(A) General"]
[10,3,"Dirección Administrativa"]
[10,7,"Dirección de Abastecimiento"]
[10,4,"Dirección de Contratación"]
[10,34,"Dirección de Familias, Comunidades y Pueblos"]
[10,35,"Dirección de Infancias y Adolescencias"]
[10,8,"Dirección de Nutrición"]
[10,9,"Dirección de Planeación y Control de la Gestión"]
[10,11,"Dirección de Primera Infancia"]
[10,13,"Dirección de Protección Especial"]
[10,36,"Dirección de Relación con la Ciudadanía"]
[10,10,"Dirección de Servicio y Atención"]
[10,5,"Dirección de Talento Humano"]
[10,6,"Dirección de Tecnologías de la Información"]
[10,12,"Dirección Financiera"]
[10,16,"Dirección Sistema Nacional de Bienestar Familiar"]
[10,32,"Director(A) Adolescencia Y Juventud"]
[10,30,"Director(A) de Familias, Comunidades y Pueblos"]
[10,28,"Director(A) De Infancia"]
[10,26,"Director(A) De Nutrición"]
[10,25,"Director(A) De Protección"]
[10,33,"Director(A) Del Snbf"]
[10,31,"Director(A) Infancia O Director(A) Adolescencia Y Juventud"]
[10,27,"Director(A) Primera Infancia"]
[10,18,"Grupo de Asistencia Técnica"]
[10,19,"Grupo de Atencion en Ciclos de Vida y Nutrición"]
[10,20,"Grupo de Recaudo"]
[10,22,"Oficina Asesora de Comunicaciones"]
[10,21,"Oficina de Aseguramiento a La Calidad"]
[10,24,"Oficina de Cooperación"]
[10,37,"Oficina de Gestión Regional"]
[10,23,"Oficina Jurídica"]
[10,1,"Secretaría General"]
[10,14,"Subdirección de Mejoramiento Organizacional"]
[10,15,"Subdirección de Monitoreo y Evaluación"]
[10,17,"Subdirección de Programación"]
[10,2,"Subdirección General"]
[10,29,"Subdirector(A) General"]
[11,3,"Dirección Administrativa"]
[11,7,"Dirección de Abastecimiento"]
[11,4,"Dirección de Contratación"]
[11,34,"Dirección de Familias, Comunidades y Pueblos"]
[11,35,"Dirección de Infancias y Adolescencias"]
[11,8,"Dirección de Nutrición"]
[11,9,"Dirección de Planeación y Control de la Gestión"]
[11,11,"Dirección de Primera Infancia"]
[11,13,"Dirección de Protección Especial"]
[11,36,"Dirección de Relación con la Ciudadanía"]
[11,10,"Dirección de Servicio y Atención"]
[11,5,"Dirección de Talento Humano"]
[11,6,"Dirección de Tecnologías de la Información"]
[11,12,"Dirección Financiera"]
[11,16,"Dirección Sistema Nacional de Bienestar Familiar"]
[11,32,"Director(A) Adolescencia Y Juventud"]
[11,30,"Director(A) de Familias, Comunidades y Pueblos"]
[11,28,"Director(A) De Infancia"]
[11,26,"Director(A) De Nutrición"]
[11,25,"Director(A) De Protección"]
[11,33,"Director(A) Del Snbf"]
[11,31,"Director(A) Infancia O Director(A) Adolescencia Y Juventud"]
[11,27,"Director(A) Primera Infancia"]
[11,18,"Grupo de Asistencia Técnica"]
[11,19,"Grupo de Atencion en Ciclos de Vida y Nutrición"]
[11,20,"Grupo de Recaudo"]
[11,22,"Oficina Asesora de Comunicaciones"]
[11,21,"Oficina de Aseguramiento a La Calidad"]
[11,24,"Oficina de Cooperación"]
[11,37,"Oficina de Gestión Regional"]
[11,23,"Oficina Jurídica"]
[11,1,"Secretaría General"]
[11,14,"Subdirección de Mejoramiento Organizacional"]
[11,15,"Subdirección de Monitoreo y Evaluación"]
[11,17,"Subdirección de Programación"]
[11,2,"Subdirección General"]
[11,29,"Subdirector(A) General"]
[12,3,"Dirección Administrativa"]
[12,7,"Dirección de Abastecimiento"]
[12,4,"Dirección de Contratación"]
[12,34,"Dirección de Familias, Comunidades y Pueblos"]
[12,35,"Dirección de Infancias y Adolescencias"]
[12,8,"Dirección de Nutrición"]
[12,9,"Dirección de Planeación y Control de la Gestión"]
[12,11,"Dirección de Primera Infancia"]
[12,13,"Dirección de Protección Especial"]
[12,36,"Dirección de Relación con la Ciudadanía"]
[12,10,"Dirección de Servicio y Atención"]
[12,5,"Dirección de Talento Humano"]
[12,6,"Dirección de Tecnologías de la Información"]
[12,12,"Dirección Financiera"]
[12,16,"Dirección Sistema Nacional de Bienestar Familiar"]
[12,32,"Director(A) Adolescencia Y Juventud"]
[12,30,"Director(A) de Familias, Comunidades y Pueblos"]
[12,28,"Director(A) De Infancia"]
[12,26,"Director(A) De Nutrición"]
[12,25,"Director(A) De Protección"]
[12,33,"Director(A) Del Snbf"]
[12,31,"Director(A) Infancia O Director(A) Adolescencia Y Juventud"]
[12,27,"Director(A) Primera Infancia"]
[12,18,"Grupo de Asistencia Técnica"]
[12,19,"Grupo de Atencion en Ciclos de Vida y Nutrición"]
[12,20,"Grupo de Recaudo"]
[12,22,"Oficina Asesora de Comunicaciones"]
[12,21,"Oficina de Aseguramiento a La Calidad"]
[12,24,"Oficina de Cooperación"]
[12,37,"Oficina de Gestión Regional"]
[12,23,"Oficina Jurídica"]
[12,1,"Secretaría General"]
[12,14,"Subdirección de Mejoramiento Organizacional"]
[12,15,"Subdirección de Monitoreo y Evaluación"]
[12,17,"Subdirección de Programación"]
[12,2,"Subdirección General"]
[12,29,"Subdirector(A) General"]
[13,3,"Dirección Administrativa"]
[13,7,"Dirección de Abastecimiento"]
[13,4,"Dirección de Contratación"]
[13,34,"Dirección de Familias, Comunidades y Pueblos"]
[13,35,"Dirección de Infancias y Adolescencias"]
[13,8,"Dirección de Nutrición"]
[13,9,"Dirección de Planeación y Control de la Gestión"]
[13,11,"Dirección de Primera Infancia"]
[13,13,"Dirección de Protección Especial"]
[13,36,"Dirección de Relación con la Ciudadanía"]
[13,10,"Dirección de Servicio y Atención"]
[13,5,"Dirección de Talento Humano"]
[13,6,"Dirección de Tecnologías de la Información"]
[13,12,"Dirección Financiera"]
[13,16,"Dirección Sistema Nacional de Bienestar Familiar"]
[13,32,"Director(A) Adolescencia Y Juventud"]
[13,30,"Director(A) de Familias, Comunidades y Pueblos"]
[13,28,"Director(A) De Infancia"]
[13,26,"Director(A) De Nutrición"]
[13,25,"Director(A) De Protección"]
[13,33,"Director(A) Del Snbf"]
[13,31,"Director(A) Infancia O Director(A) Adolescencia Y Juventud"]
[13,27,"Director(A) Primera Infancia"]
[13,18,"Grupo de Asistencia Técnica"]
[13,19,"Grupo de Atencion en Ciclos de Vida y Nutrición"]
[13,20,"Grupo de Recaudo"]
[13,22,"Oficina Asesora de Comunicaciones"]
[13,21,"Oficina de Aseguramiento a La Calidad"]
[13,24,"Oficina de Cooperación"]
[13,37,"Oficina de Gestión Regional"]
[13,23,"Oficina Jurídica"]
[13,1,"Secretaría General"]
[13,14,"Subdirección de Mejoramiento Organizacional"]
[13,15,"Subdirección de Monitoreo y Evaluación"]
[13,17,"Subdirección de Programación"]
[13,2,"Subdirección General"]
[13,29,"Subdirector(A) General"]
[14,3,"Dirección Administrativa"]
[14,7,"Dirección de Abastecimiento"]
[14,4,"Dirección de Contratación"]
[14,34,"Dirección de Familias, Comunidades y Pueblos"]
[14,35,"Dirección de Infancias y Adolescencias"]
[14,8,"Dirección de Nutrición"]
[14,9,"Dirección de Planeación y Control de la Gestión"]
[14,11,"Dirección de Primera Infancia"]
[14,13,"Dirección de Protección Especial"]
[14,36,"Dirección de Relación con la Ciudadanía"]
[14,10,"Dirección de Servicio y Atención"]
[14,5,"Dirección de Talento Humano"]
[14,6,"Dirección de Tecnologías de la Información"]
[14,12,"Dirección Financiera"]
[14,16,"Dirección Sistema Nacional de Bienestar Familiar"]
[14,32,"Director(A) Adolescencia Y Juventud"]
[14,30,"Director(A) de Familias, Comunidades y Pueblos"]
[14,28,"Director(A) De Infancia"]
[14,26,"Director(A) De Nutrición"]
[14,25,"Director(A) De Protección"]
[14,33,"Director(A) Del Snbf"]
[14,31,"Director(A) Infancia O Director(A) Adolescencia Y Juventud"]
[14,27,"Director(A) Primera Infancia"]
[14,18,"Grupo de Asistencia Técnica"]
[14,19,"Grupo de Atencion en Ciclos de Vida y Nutrición"]
[14,20,"Grupo de Recaudo"]
[14,22,"Oficina Asesora de Comunicaciones"]
[14,21,"Oficina de Aseguramiento a La Calidad"]
[14,24,"Oficina de Cooperación"]
[14,37,"Oficina de Gestión Regional"]
[14,23,"Oficina Jurídica"]
[14,1,"Secretaría General"]
[14,14,"Subdirección de Mejoramiento Organizacional"]
[14,15,"Subdirección de Monitoreo y Evaluación"]
[14,17,"Subdirección de Programación"]
[14,2,"Subdirección General"]
[14,29,"Subdirector(A) General"]
[15,3,"Dirección Administrativa"]
[15,7,"Dirección de Abastecimiento"]
[15,4,"Dirección de Contratación"]
[15,34,"Dirección de Familias, Comunidades y Pueblos"]
[15,35,"Dirección de Infancias y Adolescencias"]
[15,8,"Dirección de Nutrición"]
[15,9,"Dirección de Planeación y Control de la Gestión"]
[15,11,"Dirección de Primera Infancia"]
[15,13,"Dirección de Protección Especial"]
[15,36,"Dirección de Relación con la Ciudadanía"]
[15,10,"Dirección de Servicio y Atención"]
[15,5,"Dirección de Talento Humano"]
[15,6,"Dirección de Tecnologías de la Información"]
[15,12,"Dirección Financiera"]
[15,16,"Dirección Sistema Nacional de Bienestar Familiar"]
[15,32,"Director(A) Adolescencia Y Juventud"]
[15,30,"Director(A) de Familias, Comunidades y Pueblos"]
[15,28,"Director(A) De Infancia"]
[15,26,"Director(A) De Nutrición"]
[15,25,"Director(A) De Protección"]
[15,33,"Director(A) Del Snbf"]
[15,31,"Director(A) Infancia O Director(A) Adolescencia Y Juventud"]
[15,27,"Director(A) Primera Infancia"]
[15,18,"Grupo de Asistencia Técnica"]
[15,19,"Grupo de Atencion en Ciclos de Vida y Nutrición"]
[15,20,"Grupo de Recaudo"]
[15,22,"Oficina Asesora de Comunicaciones"]
[15,21,"Oficina de Aseguramiento a La Calidad"]
[15,24,"Oficina de Cooperación"]
[15,37,"Oficina de Gestión Regional"]
[15,23,"Oficina Jurídica"]
[15,1,"Secretaría General"]
[15,14,"Subdirección de Mejoramiento Organizacional"]
[15,15,"Subdirección de Monitoreo y Evaluación"]
[15,17,"Subdirección de Programación"]
[15,2,"Subdirección General"]
[15,29,"Subdirector(A) General"]
[16,3,"Dirección Administrativa"]
[16,7,"Dirección de Abastecimiento"]
[16,4,"Dirección de Contratación"]
[16,34,"Dirección de Familias, Comunidades y Pueblos"]
[16,35,"Dirección de Infancias y Adolescencias"]
[16,8,"Dirección de Nutrición"]
[16,9,"Dirección de Planeación y Control de la Gestión"]
[16,11,"Dirección de Primera Infancia"]
[16,13,"Dirección de Protección Especial"]
[16,36,"Dirección de Relación con la Ciudadanía"]
[16,10,"Dirección de Servicio y Atención"]
[16,5,"Dirección de Talento Humano"]
[16,6,"Dirección de Tecnologías de la Información"]
[16,12,"Dirección Financiera"]
[16,16,"Dirección Sistema Nacional de Bienestar Familiar"]
[16,32,"Director(A) Adolescencia Y Juventud"]
[16,30,"Director(A) de Familias, Comunidades y Pueblos"]
[16,28,"Director(A) De Infancia"]
[16,26,"Director(A) De Nutrición"]
[16,25,"Director(A) De Protección"]
[16,33,"Director(A) Del Snbf"]
[16,31,"Director(A) Infancia O Director(A) Adolescencia Y Juventud"]
[16,27,"Director(A) Primera Infancia"]
[16,18,"Grupo de Asistencia Técnica"]
[16,19,"Grupo de Atencion en Ciclos de Vida y Nutrición"]
[16,20,"Grupo de Recaudo"]
[16,22,"Oficina Asesora de Comunicaciones"]
[16,21,"Oficina de Aseguramiento a La Calidad"]
[16,24,"Oficina de Cooperación"]
[16,37,"Oficina de Gestión Regional"]
[16,23,"Oficina Jurídica"]
[16,1,"Secretaría General"]
[16,14,"Subdirección de Mejoramiento Organizacional"]
[16,15,"Subdirección de Monitoreo y Evaluación"]
[16,17,"Subdirección de Programación"]
[16,2,"Subdirección General"]
[16,29,"Subdirector(A) General"]
[17,3,"Dirección Administrativa"]
[17,7,"Dirección de Abastecimiento"]
[17,4,"Dirección de Contratación"]
[17,34,"Dirección de Familias, Comunidades y Pueblos"]
[17,35,"Dirección de Infancias y Adolescencias"]
[17,8,"Dirección de Nutrición"]
[17,9,"Dirección de Planeación y Control de la Gestión"]
[17,11,"Dirección de Primera Infancia"]
[17,13,"Dirección de Protección Especial"]
[17,36,"Dirección de Relación con la Ciudadanía"]
[17,10,"Dirección de Servicio y Atención"]
[17,5,"Dirección de Talento Humano"]
[17,6,"Dirección de Tecnologías de la Información"]
[17,12,"Dirección Financiera"]
[17,16,"Dirección Sistema Nacional de Bienestar Familiar"]
[17,32,"Director(A) Adolescencia Y Juventud"]
[17,30,"Director(A) de Familias, Comunidades y Pueblos"]
[17,28,"Director(A) De Infancia"]
[17,26,"Director(A) De Nutrición"]
[17,25,"Director(A) De Protección"]
[17,33,"Director(A) Del Snbf"]
[17,31,"Director(A) Infancia O Director(A) Adolescencia Y Juventud"]
[17,27,"Director(A) Primera Infancia"]
[17,18,"Grupo de Asistencia Técnica"]
[17,19,"Grupo de Atencion en Ciclos de Vida y Nutrición"]
[17,20,"Grupo de Recaudo"]
[17,22,"Oficina Asesora de Comunicaciones"]
[17,21,"Oficina de Aseguramiento a La Calidad"]
[17,24,"Oficina de Cooperación"]
[17,37,"Oficina de Gestión Regional"]
[17,23,"Oficina Jurídica"]
[17,1,"Secretaría General"]
[17,14,"Subdirección de Mejoramiento Organizacional"]
[17,15,"Subdirección de Monitoreo y Evaluación"]
[17,17,"Subdirección de Programación"]
[17,2,"Subdirección General"]
[17,29,"Subdirector(A) General"]
[18,3,"Dirección Administrativa"]
[18,7,"Dirección de Abastecimiento"]
[18,4,"Dirección de Contratación"]
[18,34,"Dirección de Familias, Comunidades y Pueblos"]
[18,35,"Dirección de Infancias y Adolescencias"]
[18,8,"Dirección de Nutrición"]
[18,9,"Dirección de Planeación y Control de la Gestión"]
[18,11,"Dirección de Primera Infancia"]
[18,13,"Dirección de Protección Especial"]
[18,36,"Dirección de Relación con la Ciudadanía"]
[18,10,"Dirección de Servicio y Atención"]
[18,5,"Dirección de Talento Humano"]
[18,6,"Dirección de Tecnologías de la Información"]
[18,12,"Dirección Financiera"]
[18,16,"Dirección Sistema Nacional de Bienestar Familiar"]
[18,32,"Director(A) Adolescencia Y Juventud"]
[18,30,"Director(A) de Familias, Comunidades y Pueblos"]
[18,28,"Director(A) De Infancia"]
[18,26,"Director(A) De Nutrición"]
[18,25,"Director(A) De Protección"]
[18,33,"Director(A) Del Snbf"]
[18,31,"Director(A) Infancia O Director(A) Adolescencia Y Juventud"]
[18,27,"Director(A) Primera Infancia"]
[18,18,"Grupo de Asistencia Técnica"]
[18,19,"Grupo de Atencion en Ciclos de Vida y Nutrición"]
[18,20,"Grupo de Recaudo"]
[18,22,"Oficina Asesora de Comunicaciones"]
[18,21,"Oficina de Aseguramiento a La Calidad"]
[18,24,"Oficina de Cooperación"]
[18,37,"Oficina de Gestión Regional"]
[18,23,"Oficina Jurídica"]
[18,1,"Secretaría General"]
[18,14,"Subdirección de Mejoramiento Organizacional"]
[18,15,"Subdirección de Monitoreo y Evaluación"]
[18,17,"Subdirección de Programación"]
[18,2,"Subdirección General"]
[18,29,"Subdirector(A) General"]
[19,3,"Dirección Administrativa"]
[19,7,"Dirección de Abastecimiento"]
[19,4,"Dirección de Contratación"]
[19,34,"Dirección de Familias, Comunidades y Pueblos"]
[19,35,"Dirección de Infancias y Adolescencias"]
[19,8,"Dirección de Nutrición"]
[19,9,"Dirección de Planeación y Control de la Gestión"]
[19,11,"Dirección de Primera Infancia"]
[19,13,"Dirección de Protección Especial"]
[19,36,"Dirección de Relación con la Ciudadanía"]
[19,10,"Dirección de Servicio y Atención"]
[19,5,"Dirección de Talento Humano"]
[19,6,"Dirección de Tecnologías de la Información"]
[19,12,"Dirección Financiera"]
[19,16,"Dirección Sistema Nacional de Bienestar Familiar"]
[19,32,"Director(A) Adolescencia Y Juventud"]
[19,30,"Director(A) de Familias, Comunidades y Pueblos"]
[19,28,"Director(A) De Infancia"]
[19,26,"Director(A) De Nutrición"]
[19,25,"Director(A) De Protección"]
[19,33,"Director(A) Del Snbf"]
[19,31,"Director(A) Infancia O Director(A) Adolescencia Y Juventud"]
[19,27,"Director(A) Primera Infancia"]
[19,18,"Grupo de Asistencia Técnica"]
[19,19,"Grupo de Atencion en Ciclos de Vida y Nutrición"]
[19,20,"Grupo de Recaudo"]
[19,22,"Oficina Asesora de Comunicaciones"]
[19,21,"Oficina de Aseguramiento a La Calidad"]
[19,24,"Oficina de Cooperación"]
[19,37,"Oficina de Gestión Regional"]
[19,23,"Oficina Jurídica"]
[19,1,"Secretaría General"]
[19,14,"Subdirección de Mejoramiento Organizacional"]
[19,15,"Subdirección de Monitoreo y Evaluación"]
[19,17,"Subdirección de Programación"]
[19,2,"Subdirección General"]
[19,29,"Subdirector(A) General"]
[20,3,"Dirección Administrativa"]
[20,7,"Dirección de Abastecimiento"]
[20,4,"Dirección de Contratación"]
[20,34,"Dirección de Familias, Comunidades y Pueblos"]
[20,35,"Dirección de Infancias y Adolescencias"]
[20,8,"Dirección de Nutrición"]
[20,9,"Dirección de Planeación y Control de la Gestión"]
[20,11,"Dirección de Primera Infancia"]
[20,13,"Dirección de Protección Especial"]
[20,36,"Dirección de Relación con la Ciudadanía"]
[20,10,"Dirección de Servicio y Atención"]
[20,5,"Dirección de Talento Humano"]
[20,6,"Dirección de Tecnologías de la Información"]
[20,12,"Dirección Financiera"]
[20,16,"Dirección Sistema Nacional de Bienestar Familiar"]
[20,32,"Director(A) Adolescencia Y Juventud"]
[20,30,"Director(A) de Familias, Comunidades y Pueblos"]
[20,28,"Director(A) De Infancia"]
[20,26,"Director(A) De Nutrición"]
[20,25,"Director(A) De Protección"]
[20,33,"Director(A) Del Snbf"]
[20,31,"Director(A) Infancia O Director(A) Adolescencia Y Juventud"]
[20,27,"Director(A) Primera Infancia"]
[20,18,"Grupo de Asistencia Técnica"]
[20,19,"Grupo de Atencion en Ciclos de Vida y Nutrición"]
[20,20,"Grupo de Recaudo"]
[20,22,"Oficina Asesora de Comunicaciones"]
[20,21,"Oficina de Aseguramiento a La Calidad"]
[20,24,"Oficina de Cooperación"]
[20,37,"Oficina de Gestión Regional"]
[20,23,"Oficina Jurídica"]
[20,1,"Secretaría General"]
[20,14,"Subdirección de Mejoramiento Organizacional"]
[20,15,"Subdirección de Monitoreo y Evaluación"]
[20,17,"Subdirección de Programación"]
[20,2,"Subdirección General"]
[20,29,"Subdirector(A) General"]
[21,3,"Dirección Administrativa"]
[21,7,"Dirección de Abastecimiento"]
[21,4,"Dirección de Contratación"]
[21,34,"Dirección de Familias, Comunidades y Pueblos"]
[21,35,"Dirección de Infancias y Adolescencias"]
[21,8,"Dirección de Nutrición"]
[21,9,"Dirección de Planeación y Control de la Gestión"]
[21,11,"Dirección de Primera Infancia"]
[21,13,"Dirección de Protección Especial"]
[21,36,"Dirección de Relación con la Ciudadanía"]
[21,10,"Dirección de Servicio y Atención"]
[21,5,"Dirección de Talento Humano"]
[21,6,"Dirección de Tecnologías de la Información"]
[21,12,"Dirección Financiera"]
[21,16,"Dirección Sistema Nacional de Bienestar Familiar"]
[21,32,"Director(A) Adolescencia Y Juventud"]
[21,30,"Director(A) de Familias, Comunidades y Pueblos"]
[21,28,"Director(A) De Infancia"]
[21,26,"Director(A) De Nutrición"]
[21,25,"Director(A) De Protección"]
[21,33,"Director(A) Del Snbf"]
[21,31,"Director(A) Infancia O Director(A) Adolescencia Y Juventud"]
[21,27,"Director(A) Primera Infancia"]
[21,18,"Grupo de Asistencia Técnica"]
[21,19,"Grupo de Atencion en Ciclos de Vida y Nutrición"]
[21,20,"Grupo de Recaudo"]
[21,22,"Oficina Asesora de Comunicaciones"]
[21,21,"Oficina de Aseguramiento a La Calidad"]
[21,24,"Oficina de Cooperación"]
[21,37,"Oficina de Gestión Regional"]
[21,23,"Oficina Jurídica"]
[21,1,"Secretaría General"]
[21,14,"Subdirección de Mejoramiento Organizacional"]
[21,15,"Subdirección de Monitoreo y Evaluación"]
[21,17,"Subdirección de Programación"]
[21,2,"Subdirección General"]
[21,29,"Subdirector(A) General"]
[22,3,"Dirección Administrativa"]
[22,7,"Dirección de Abastecimiento"]
[22,4,"Dirección de Contratación"]
[22,34,"Dirección de Familias, Comunidades y Pueblos"]
[22,35,"Dirección de Infancias y Adolescencias"]
[22,8,"Dirección de Nutrición"]
[22,9,"Dirección de Planeación y Control de la Gestión"]
[22,11,"Dirección de Primera Infancia"]
[22,13,"Dirección de Protección Especial"]
[22,36,"Dirección de Relación con la Ciudadanía"]
[22,10,"Dirección de Servicio y Atención"]
[22,5,"Dirección de Talento Humano"]
[22,6,"Dirección de Tecnologías de la Información"]
[22,12,"Dirección Financiera"]
[22,16,"Dirección Sistema Nacional de Bienestar Familiar"]
[22,32,"Director(A) Adolescencia Y Juventud"]
[22,30,"Director(A) de Familias, Comunidades y Pueblos"]
[22,28,"Director(A) De Infancia"]
[22,26,"Director(A) De Nutrición"]
[22,25,"Director(A) De Protección"]
[22,33,"Director(A) Del Snbf"]
[22,31,"Director(A) Infancia O Director(A) Adolescencia Y Juventud"]
[22,27,"Director(A) Primera Infancia"]
[22,18,"Grupo de Asistencia Técnica"]
[22,19,"Grupo de Atencion en Ciclos de Vida y Nutrición"]
[22,20,"Grupo de Recaudo"]
[22,22,"Oficina Asesora de Comunicaciones"]
[22,21,"Oficina de Aseguramiento a La Calidad"]
[22,24,"Oficina de Cooperación"]
[22,37,"Oficina de Gestión Regional"]
[22,23,"Oficina Jurídica"]
[22,1,"Secretaría General"]
[22,14,"Subdirección de Mejoramiento Organizacional"]
[22,15,"Subdirección de Monitoreo y Evaluación"]
[22,17,"Subdirección de Programación"]
[22,2,"Subdirección General"]
[22,29,"Subdirector(A) General"]
[23,3,"Dirección Administrativa"]
[23,7,"Dirección de Abastecimiento"]
[23,4,"Dirección de Contratación"]
[23,34,"Dirección de Familias, Comunidades y Pueblos"]
[23,35,"Dirección de Infancias y Adolescencias"]
[23,8,"Dirección de Nutrición"]
[23,9,"Dirección de Planeación y Control de la Gestión"]
[23,11,"Dirección de Primera Infancia"]
[23,13,"Dirección de Protección Especial"]
[23,36,"Dirección de Relación con la Ciudadanía"]
[23,10,"Dirección de Servicio y Atención"]
[23,5,"Dirección de Talento Humano"]
[23,6,"Dirección de Tecnologías de la Información"]
[23,12,"Dirección Financiera"]
[23,16,"Dirección Sistema Nacional de Bienestar Familiar"]
[23,32,"Director(A) Adolescencia Y Juventud"]
[23,30,"Director(A) de Familias, Comunidades y Pueblos"]
[23,28,"Director(A) De Infancia"]
[23,26,"Director(A) De Nutrición"]
[23,25,"Director(A) De Protección"]
[23,33,"Director(A) Del Snbf"]
[23,31,"Director(A) Infancia O Director(A) Adolescencia Y Juventud"]
[23,27,"Director(A) Primera Infancia"]
[23,18,"Grupo de Asistencia Técnica"]
[23,19,"Grupo de Atencion en Ciclos de Vida y Nutrición"]
[23,20,"Grupo de Recaudo"]
[23,22,"Oficina Asesora de Comunicaciones"]
[23,21,"Oficina de Aseguramiento a La Calidad"]
[23,24,"Oficina de Cooperación"]
[23,37,"Oficina de Gestión Regional"]
[23,23,"Oficina Jurídica"]
[23,1,"Secretaría General"]
[23,14,"Subdirección de Mejoramiento Organizacional"]
[23,15,"Subdirección de Monitoreo y Evaluación"]
[23,17,"Subdirección de Programación"]
[23,2,"Subdirección General"]
[23,29,"Subdirector(A) General"]
[24,3,"Dirección Administrativa"]
[24,7,"Dirección de Abastecimiento"]
[24,4,"Dirección de Contratación"]
[24,34,"Dirección de Familias, Comunidades y Pueblos"]
[24,35,"Dirección de Infancias y Adolescencias"]
[24,8,"Dirección de Nutrición"]
[24,9,"Dirección de Planeación y Control de la Gestión"]
[24,11,"Dirección de Primera Infancia"]
[24,13,"Dirección de Protección Especial"]
[24,36,"Dirección de Relación con la Ciudadanía"]
[24,10,"Dirección de Servicio y Atención"]
[24,5,"Dirección de Talento Humano"]
[24,6,"Dirección de Tecnologías de la Información"]
[24,12,"Dirección Financiera"]
[24,16,"Dirección Sistema Nacional de Bienestar Familiar"]
[24,32,"Director(A) Adolescencia Y Juventud"]
[24,30,"Director(A) de Familias, Comunidades y Pueblos"]
[24,28,"Director(A) De Infancia"]
[24,26,"Director(A) De Nutrición"]
[24,25,"Director(A) De Protección"]
[24,33,"Director(A) Del Snbf"]
[24,31,"Director(A) Infancia O Director(A) Adolescencia Y Juventud"]
[24,27,"Director(A) Primera Infancia"]
[24,18,"Grupo de Asistencia Técnica"]
[24,19,"Grupo de Atencion en Ciclos de Vida y Nutrición"]
[24,20,"Grupo de Recaudo"]
[24,22,"Oficina Asesora de Comunicaciones"]
[24,21,"Oficina de Aseguramiento a La Calidad"]
[24,24,"Oficina de Cooperación"]
[24,37,"Oficina de Gestión Regional"]
[24,23,"Oficina Jurídica"]
[24,1,"Secretaría General"]
[24,14,"Subdirección de Mejoramiento Organizacional"]
[24,15,"Subdirección de Monitoreo y Evaluación"]
[24,17,"Subdirección de Programación"]
[24,2,"Subdirección General"]
[24,29,"Subdirector(A) General"]
[25,3,"Dirección Administrativa"]
[25,7,"Dirección de Abastecimiento"]
[25,4,"Dirección de Contratación"]
[25,34,"Dirección de Familias, Comunidades y Pueblos"]
[25,35,"Dirección de Infancias y Adolescencias"]
[25,8,"Dirección de Nutrición"]
[25,9,"Dirección de Planeación y Control de la Gestión"]
[25,11,"Dirección de Primera Infancia"]
[25,13,"Dirección de Protección Especial"]
[25,36,"Dirección de Relación con la Ciudadanía"]
[25,10,"Dirección de Servicio y Atención"]
[25,5,"Dirección de Talento Humano"]
[25,6,"Dirección de Tecnologías de la Información"]
[25,12,"Dirección Financiera"]
[25,16,"Dirección Sistema Nacional de Bienestar Familiar"]
[25,32,"Director(A) Adolescencia Y Juventud"]
[25,30,"Director(A) de Familias, Comunidades y Pueblos"]
[25,28,"Director(A) De Infancia"]
[25,26,"Director(A) De Nutrición"]
[25,25,"Director(A) De Protección"]
[25,33,"Director(A) Del Snbf"]
[25,31,"Director(A) Infancia O Director(A) Adolescencia Y Juventud"]
[25,27,"Director(A) Primera Infancia"]
[25,18,"Grupo de Asistencia Técnica"]
[25,19,"Grupo de Atencion en Ciclos de Vida y Nutrición"]
[25,20,"Grupo de Recaudo"]
[25,22,"Oficina Asesora de Comunicaciones"]
[25,21,"Oficina de Aseguramiento a La Calidad"]
[25,24,"Oficina de Cooperación"]
[25,37,"Oficina de Gestión Regional"]
[25,23,"Oficina Jurídica"]
[25,1,"Secretaría General"]
[25,14,"Subdirección de Mejoramiento Organizacional"]
[25,15,"Subdirección de Monitoreo y Evaluación"]
[25,17,"Subdirección de Programación"]
[25,2,"Subdirección General"]
[25,29,"Subdirector(A) General"]
[26,3,"Dirección Administrativa"]
[26,7,"Dirección de Abastecimiento"]
[26,4,"Dirección de Contratación"]
[26,34,"Dirección de Familias, Comunidades y Pueblos"]
[26,35,"Dirección de Infancias y Adolescencias"]
[26,8,"Dirección de Nutrición"]
[26,9,"Dirección de Planeación y Control de la Gestión"]
[26,11,"Dirección de Primera Infancia"]
[26,13,"Dirección de Protección Especial"]
[26,36,"Dirección de Relación con la Ciudadanía"]
[26,10,"Dirección de Servicio y Atención"]
[26,5,"Dirección de Talento Humano"]
[26,6,"Dirección de Tecnologías de la Información"]
[26,12,"Dirección Financiera"]
[26,16,"Dirección Sistema Nacional de Bienestar Familiar"]
[26,32,"Director(A) Adolescencia Y Juventud"]
[26,30,"Director(A) de Familias, Comunidades y Pueblos"]
[26,28,"Director(A) De Infancia"]
[26,26,"Director(A) De Nutrición"]
[26,25,"Director(A) De Protección"]
[26,33,"Director(A) Del Snbf"]
[26,31,"Director(A) Infancia O Director(A) Adolescencia Y Juventud"]
[26,27,"Director(A) Primera Infancia"]
[26,18,"Grupo de Asistencia Técnica"]
[26,19,"Grupo de Atencion en Ciclos de Vida y Nutrición"]
[26,20,"Grupo de Recaudo"]
[26,22,"Oficina Asesora de Comunicaciones"]
[26,21,"Oficina de Aseguramiento a La Calidad"]
[26,24,"Oficina de Cooperación"]
[26,37,"Oficina de Gestión Regional"]
[26,23,"Oficina Jurídica"]
[26,1,"Secretaría General"]
[26,14,"Subdirección de Mejoramiento Organizacional"]
[26,15,"Subdirección de Monitoreo y Evaluación"]
[26,17,"Subdirección de Programación"]
[26,2,"Subdirección General"]
[26,29,"Subdirector(A) General"]
[27,3,"Dirección Administrativa"]
[27,7,"Dirección de Abastecimiento"]
[27,4,"Dirección de Contratación"]
[27,34,"Dirección de Familias, Comunidades y Pueblos"]
[27,35,"Dirección de Infancias y Adolescencias"]
[27,8,"Dirección de Nutrición"]
[27,9,"Dirección de Planeación y Control de la Gestión"]
[27,11,"Dirección de Primera Infancia"]
[27,13,"Dirección de Protección Especial"]
[27,36,"Dirección de Relación con la Ciudadanía"]
[27,10,"Dirección de Servicio y Atención"]
[27,5,"Dirección de Talento Humano"]
[27,6,"Dirección de Tecnologías de la Información"]
[27,12,"Dirección Financiera"]
[27,16,"Dirección Sistema Nacional de Bienestar Familiar"]
[27,32,"Director(A) Adolescencia Y Juventud"]
[27,30,"Director(A) de Familias, Comunidades y Pueblos"]
[27,28,"Director(A) De Infancia"]
[27,26,"Director(A) De Nutrición"]
[27,25,"Director(A) De Protección"]
[27,33,"Director(A) Del Snbf"]
[27,31,"Director(A) Infancia O Director(A) Adolescencia Y Juventud"]
[27,27,"Director(A) Primera Infancia"]
[27,18,"Grupo de Asistencia Técnica"]
[27,19,"Grupo de Atencion en Ciclos de Vida y Nutrición"]
[27,20,"Grupo de Recaudo"]
[27,22,"Oficina Asesora de Comunicaciones"]
[27,21,"Oficina de Aseguramiento a La Calidad"]
[27,24,"Oficina de Cooperación"]
[27,37,"Oficina de Gestión Regional"]
[27,23,"Oficina Jurídica"]
[27,1,"Secretaría General"]
[27,14,"Subdirección de Mejoramiento Organizacional"]
[27,15,"Subdirección de Monitoreo y Evaluación"]
[27,17,"Subdirección de Programación"]
[27,2,"Subdirección General"]
[27,29,"Subdirector(A) General"]
[28,3,"Dirección Administrativa"]
[28,7,"Dirección de Abastecimiento"]
[28,4,"Dirección de Contratación"]
[28,34,"Dirección de Familias, Comunidades y Pueblos"]
[28,35,"Dirección de Infancias y Adolescencias"]
[28,8,"Dirección de Nutrición"]
[28,9,"Dirección de Planeación y Control de la Gestión"]
[28,11,"Dirección de Primera Infancia"]
[28,13,"Dirección de Protección Especial"]
[28,36,"Dirección de Relación con la Ciudadanía"]
[28,10,"Dirección de Servicio y Atención"]
[28,5,"Dirección de Talento Humano"]
[28,6,"Dirección de Tecnologías de la Información"]
[28,12,"Dirección Financiera"]
[28,16,"Dirección Sistema Nacional de Bienestar Familiar"]
[28,32,"Director(A) Adolescencia Y Juventud"]
[28,30,"Director(A) de Familias, Comunidades y Pueblos"]
[28,28,"Director(A) De Infancia"]
[28,26,"Director(A) De Nutrición"]
[28,25,"Director(A) De Protección"]
[28,33,"Director(A) Del Snbf"]
[28,31,"Director(A) Infancia O Director(A) Adolescencia Y Juventud"]
[28,27,"Director(A) Primera Infancia"]
[28,18,"Grupo de Asistencia Técnica"]
[28,19,"Grupo de Atencion en Ciclos de Vida y Nutrición"]
[28,20,"Grupo de Recaudo"]
[28,22,"Oficina Asesora de Comunicaciones"]
[28,21,"Oficina de Aseguramiento a La Calidad"]
[28,24,"Oficina de Cooperación"]
[28,37,"Oficina de Gestión Regional"]
[28,23,"Oficina Jurídica"]
[28,1,"Secretaría General"]
[28,14,"Subdirección de Mejoramiento Organizacional"]
[28,15,"Subdirección de Monitoreo y Evaluación"]
[28,17,"Subdirección de Programación"]
[28,2,"Subdirección General"]
[28,29,"Subdirector(A) General"]
[29,3,"Dirección Administrativa"]
[29,7,"Dirección de Abastecimiento"]
[29,4,"Dirección de Contratación"]
[29,34,"Dirección de Familias, Comunidades y Pueblos"]
[29,35,"Dirección de Infancias y Adolescencias"]
[29,8,"Dirección de Nutrición"]
[29,9,"Dirección de Planeación y Control de la Gestión"]
[29,11,"Dirección de Primera Infancia"]
[29,13,"Dirección de Protección Especial"]
[29,36,"Dirección de Relación con la Ciudadanía"]
[29,10,"Dirección de Servicio y Atención"]
[29,5,"Dirección de Talento Humano"]
[29,6,"Dirección de Tecnologías de la Información"]
[29,12,"Dirección Financiera"]
[29,16,"Dirección Sistema Nacional de Bienestar Familiar"]
[29,32,"Director(A) Adolescencia Y Juventud"]
[29,30,"Director(A) de Familias, Comunidades y Pueblos"]
[29,28,"Director(A) De Infancia"]
[29,26,"Director(A) De Nutrición"]
[29,25,"Director(A) De Protección"]
[29,33,"Director(A) Del Snbf"]
[29,31,"Director(A) Infancia O Director(A) Adolescencia Y Juventud"]
[29,27,"Director(A) Primera Infancia"]
[29,18,"Grupo de Asistencia Técnica"]
[29,19,"Grupo de Atencion en Ciclos de Vida y Nutrición"]
[29,20,"Grupo de Recaudo"]
[29,22,"Oficina Asesora de Comunicaciones"]
[29,21,"Oficina de Aseguramiento a La Calidad"]
[29,24,"Oficina de Cooperación"]
[29,37,"Oficina de Gestión Regional"]
[29,23,"Oficina Jurídica"]
[29,1,"Secretaría General"]
[29,14,"Subdirección de Mejoramiento Organizacional"]
[29,15,"Subdirección de Monitoreo y Evaluación"]
[29,17,"Subdirección de Programación"]
[29,2,"Subdirección General"]
[29,29,"Subdirector(A) General"]
[30,3,"Dirección Administrativa"]
[30,7,"Dirección de Abastecimiento"]
[30,4,"Dirección de Contratación"]
[30,34,"Dirección de Familias, Comunidades y Pueblos"]
[30,35,"Dirección de Infancias y Adolescencias"]
[30,8,"Dirección de Nutrición"]
[30,9,"Dirección de Planeación y Control de la Gestión"]
[30,11,"Dirección de Primera Infancia"]
[30,13,"Dirección de Protección Especial"]
[30,36,"Dirección de Relación con la Ciudadanía"]
[30,10,"Dirección de Servicio y Atención"]
[30,5,"Dirección de Talento Humano"]
[30,6,"Dirección de Tecnologías de la Información"]
[30,12,"Dirección Financiera"]
[30,16,"Dirección Sistema Nacional de Bienestar Familiar"]
[30,32,"Director(A) Adolescencia Y Juventud"]
[30,30,"Director(A) de Familias, Comunidades y Pueblos"]
[30,28,"Director(A) De Infancia"]
[30,26,"Director(A) De Nutrición"]
[30,25,"Director(A) De Protección"]
[30,33,"Director(A) Del Snbf"]
[30,31,"Director(A) Infancia O Director(A) Adolescencia Y Juventud"]
[30,27,"Director(A) Primera Infancia"]
[30,18,"Grupo de Asistencia Técnica"]
[30,19,"Grupo de Atencion en Ciclos de Vida y Nutrición"]
[30,20,"Grupo de Recaudo"]
[30,22,"Oficina Asesora de Comunicaciones"]
[30,21,"Oficina de Aseguramiento a La Calidad"]
[30,24,"Oficina de Cooperación"]
[30,37,"Oficina de Gestión Regional"]
[30,23,"Oficina Jurídica"]
[30,1,"Secretaría General"]
[30,14,"Subdirección de Mejoramiento Organizacional"]
[30,15,"Subdirección de Monitoreo y Evaluación"]
[30,17,"Subdirección de Programación"]
[30,2,"Subdirección General"]
[30,29,"Subdirector(A) General"]
[31,3,"Dirección Administrativa"]
[31,7,"Dirección de Abastecimiento"]
[31,4,"Dirección de Contratación"]
[31,34,"Dirección de Familias, Comunidades y Pueblos"]
[31,35,"Dirección de Infancias y Adolescencias"]
[31,8,"Dirección de Nutrición"]
[31,9,"Dirección de Planeación y Control de la Gestión"]
[31,11,"Dirección de Primera Infancia"]
[31,13,"Dirección de Protección Especial"]
[31,36,"Dirección de Relación con la Ciudadanía"]
[31,10,"Dirección de Servicio y Atención"]
[31,5,"Dirección de Talento Humano"]
[31,6,"Dirección de Tecnologías de la Información"]
[31,12,"Dirección Financiera"]
[31,16,"Dirección Sistema Nacional de Bienestar Familiar"]
[31,32,"Director(A) Adolescencia Y Juventud"]
[31,30,"Director(A) de Familias, Comunidades y Pueblos"]
[31,28,"Director(A) De Infancia"]
[31,26,"Director(A) De Nutrición"]
[31,25,"Director(A) De Protección"]
[31,33,"Director(A) Del Snbf"]
[31,31,"Director(A) Infancia O Director(A) Adolescencia Y Juventud"]
[31,27,"Director(A) Primera Infancia"]
[31,18,"Grupo de Asistencia Técnica"]
[31,19,"Grupo de Atencion en Ciclos de Vida y Nutrición"]
[31,20,"Grupo de Recaudo"]
[31,22,"Oficina Asesora de Comunicaciones"]
[31,21,"Oficina de Aseguramiento a La Calidad"]
[31,24,"Oficina de Cooperación"]
[31,37,"Oficina de Gestión Regional"]
[31,23,"Oficina Jurídica"]
[31,1,"Secretaría General"]
[31,14,"Subdirección de Mejoramiento Organizacional"]
[31,15,"Subdirección de Monitoreo y Evaluación"]
[31,17,"Subdirección de Programación"]
[31,2,"Subdirección General"]
[31,29,"Subdirector(A) General"]
[32,3,"Dirección Administrativa"]
[32,7,"Dirección de Abastecimiento"]
[32,4,"Dirección de Contratación"]
[32,34,"Dirección de Familias, Comunidades y Pueblos"]
[32,35,"Dirección de Infancias y Adolescencias"]
[32,8,"Dirección de Nutrición"]
[32,9,"Dirección de Planeación y Control de la Gestión"]
[32,11,"Dirección de Primera Infancia"]
[32,13,"Dirección de Protección Especial"]
[32,36,"Dirección de Relación con la Ciudadanía"]
[32,10,"Dirección de Servicio y Atención"]
[32,5,"Dirección de Talento Humano"]
[32,6,"Dirección de Tecnologías de la Información"]
[32,12,"Dirección Financiera"]
[32,16,"Dirección Sistema Nacional de Bienestar Familiar"]
[32,32,"Director(A) Adolescencia Y Juventud"]
[32,30,"Director(A) de Familias, Comunidades y Pueblos"]
[32,28,"Director(A) De Infancia"]
[32,26,"Director(A) De Nutrición"]
[32,25,"Director(A) De Protección"]
[32,33,"Director(A) Del Snbf"]
[32,31,"Director(A) Infancia O Director(A) Adolescencia Y Juventud"]
[32,27,"Director(A) Primera Infancia"]
[32,18,"Grupo de Asistencia Técnica"]
[32,19,"Grupo de Atencion en Ciclos de Vida y Nutrición"]
[32,20,"Grupo de Recaudo"]
[32,22,"Oficina Asesora de Comunicaciones"]
[32,21,"Oficina de Aseguramiento a La Calidad"]
[32,24,"Oficina de Cooperación"]
[32,37,"Oficina de Gestión Regional"]
[32,23,"Oficina Jurídica"]
[32,1,"Secretaría General"]
[32,14,"Subdirección de Mejoramiento Organizacional"]
[32,15,"Subdirección de Monitoreo y Evaluación"]
[32,17,"Subdirección de Programación"]
[32,2,"Subdirección General"]
[32,29,"Subdirector(A) General"]
[33,3,"Dirección Administrativa"]
[33,7,"Dirección de Abastecimiento"]
[33,4,"Dirección de Contratación"]
[33,34,"Dirección de Familias, Comunidades y Pueblos"]
[33,35,"Dirección de Infancias y Adolescencias"]
[33,8,"Dirección de Nutrición"]
[33,9,"Dirección de Planeación y Control de la Gestión"]
[33,11,"Dirección de Primera Infancia"]
[33,13,"Dirección de Protección Especial"]
[33,36,"Dirección de Relación con la Ciudadanía"]
[33,10,"Dirección de Servicio y Atención"]
[33,5,"Dirección de Talento Humano"]
[33,6,"Dirección de Tecnologías de la Información"]
[33,12,"Dirección Financiera"]
[33,16,"Dirección Sistema Nacional de Bienestar Familiar"]
[33,32,"Director(A) Adolescencia Y Juventud"]
[33,30,"Director(A) de Familias, Comunidades y Pueblos"]
[33,28,"Director(A) De Infancia"]
[33,26,"Director(A) De Nutrición"]
[33,25,"Director(A) De Protección"]
[33,33,"Director(A) Del Snbf"]
[33,31,"Director(A) Infancia O Director(A) Adolescencia Y Juventud"]
[33,27,"Director(A) Primera Infancia"]
[33,18,"Grupo de Asistencia Técnica"]
[33,19,"Grupo de Atencion en Ciclos de Vida y Nutrición"]
[33,20,"Grupo de Recaudo"]
[33,22,"Oficina Asesora de Comunicaciones"]
[33,21,"Oficina de Aseguramiento a La Calidad"]
[33,24,"Oficina de Cooperación"]
[33,37,"Oficina de Gestión Regional"]
[33,23,"Oficina Jurídica"]
[33,1,"Secretaría General"]
[33,14,"Subdirección de Mejoramiento Organizacional"]
[33,15,"Subdirección de Monitoreo y Evaluación"]
[33,17,"Subdirección de Programación"]
[33,2,"Subdirección General"]
[33,29,"Subdirector(A) General"]
[34,3,"Dirección Administrativa"]
[34,7,"Dirección de Abastecimiento"]
[34,4,"Dirección de Contratación"]
[34,34,"Dirección de Familias, Comunidades y Pueblos"]
[34,35,"Dirección de Infancias y Adolescencias"]
[34,8,"Dirección de Nutrición"]
[34,9,"Dirección de Planeación y Control de la Gestión"]
[34,11,"Dirección de Primera Infancia"]
[34,13,"Dirección de Protección Especial"]
[34,36,"Dirección de Relación con la Ciudadanía"]
[34,10,"Dirección de Servicio y Atención"]
[34,5,"Dirección de Talento Humano"]
[34,6,"Dirección de Tecnologías de la Información"]
[34,12,"Dirección Financiera"]
[34,16,"Dirección Sistema Nacional de Bienestar Familiar"]
[34,32,"Director(A) Adolescencia Y Juventud"]
[34,30,"Director(A) de Familias, Comunidades y Pueblos"]
[34,28,"Director(A) De Infancia"]
[34,26,"Director(A) De Nutrición"]
[34,25,"Director(A) De Protección"]
[34,33,"Director(A) Del Snbf"]
[34,31,"Director(A) Infancia O Director(A) Adolescencia Y Juventud"]
[34,27,"Director(A) Primera Infancia"]
[34,18,"Grupo de Asistencia Técnica"]
[34,19,"Grupo de Atencion en Ciclos de Vida y Nutrición"]
[34,20,"Grupo de Recaudo"]
[34,22,"Oficina Asesora de Comunicaciones"]
[34,21,"Oficina de Aseguramiento a La Calidad"]
[34,24,"Oficina de Cooperación"]
[34,37,"Oficina de Gestión Regional"]
[34,23,"Oficina Jurídica"]
[34,1,"Secretaría General"]
[34,14,"Subdirección de Mejoramiento Organizacional"]
[34,15,"Subdirección de Monitoreo y Evaluación"]
[34,17,"Subdirección de Programación"]
[34,2,"Subdirección General"]
[34,29,"Subdirector(A) General"]